Workbook

Sheet viga
A1: MATERIALS | E1: SLAB | I1: STEEL BEAM | M1: GEOMETRY | Q1: LOADS | U1: ELASTIC INTERNAL FORCES | Y1: Análisis plástico de solicitaciones: (suponemos clase 1, aunque clase 2 permite redistribuciones grandes)
A2: CONCRETE | E2: upper thickness | F2: [mm] | G2: 60 | I2: rank | J2: [-] | K2: primary | M2: L | N2: [m] | O2: 6 | Q2: flooring | R2: [kN/m2] | S2: 1 | U2: Miso,ELU | V2: [kNm] | W2: =$S$20*$O$2^2/8 -> 254.2495838 | Y2: Tipo de solicitación para clase de sección: se entiende que siempre es flexión, no compresión (en tracción no hay abolladura)
A3: fck | B3: [N/mm2] | C3: 25 | E3: height ribs | F3: [mm] | G3: 60 | I3: type | J3: [-] | K3: HEB | M3: similar Ladj | N3: [-] | O3: N | Q3: walls | R3: [kN/m2] | S3: 1 | U3: Vel,ELU,pers,A | V3: [kN] | W3: =$S$20*$O$2*N24 -> 127.1247919
A4: cement | B4: [-] | C4: normal | E4: width ribs | F4: [mm] | G4: 100 | I4: size | J4: [mm] | K4: 200 | M4: Ladj,diff,A | N4: [m] | O4: 0 | Q4: other G | R4: [kN/m2] | U4: Vel,ELU,pers,B | V4: [kN] | W4: =$S$20*$O$2*N25 -> 211.8746531 | Y4: Se calcula la resistencia a positivos, y se obtiene la curva de momentos compatible
A5: exposition to RH | B5: [-] | C5: none | E5: dist ribs | F5: [mm] | G5: 210 | I5: following rank type | J5: [-] | K5: IPE | M5: Ladj,diff,B | N5: [m] | O5: 2.4 | Q5: Q | R5: [kN/m2] | S5: 3 | U5: Mel,ELU,pers,A | V5: [kNm] | W5: =$S$20*$O$2^2*N26 -> 0 | Y5: con las cargas (i.e. que cumple momento isostático) y los apoyos, y se la hace pasar por el M resistente
A6: RH | B6: [-] | C6: 0.5 | E6: total depth | F6: [mm] | G6: =G2+G3 -> 120 | I6: following rank size | J6: [mm] | K6: 100 | M6: similar transv. range | N6: [-] | O6: N | Q6: cathegory Q | R6: - | S6: use A-B, snow high | U6: Mel,ELU,pers,C | V6: [kNm] | W6: =$S$20*$O$2^2*N27 -> 127.1247919 | Y6: a positivos (reducido un poco en el caso de pin-fix para considerar que la "panza" se alcanza un poco
A7: t0 | B7: [days] | C7: 7 | E7: full/empty | F7: [-] | G7: =IF(G3=0,1,G4/G5) -> 0.4761904762 | I7: following rank dist | J7: [m] | K7: 1.5 | M7: transv. range left | N7: [m] | O7: 5 | Q7: partition walls | R7: - | S7: average | U7: Mel,ELU,pers,B | V7: [kNm] | W7: =$S$20*$O$2^2*N28 -> 254.2495838 | Y7: hacia el extremo apoyado), calculándose los M negativos solicitación (primero en B y luego en A)
A8: Creep code | B8: [-] | C8: average | E8: eq. thickness | F8: [mm] | G8: =G2+G7*G3 -> 88.57142857 | I8: following rank weight | J8: [kN/m] | K8: =IF(K6=0,0,0.01*IF(K5=aux!K2,INDEX(IPE!B3:B21,MATCH(K6,IPE!A3:A21,0)),IF(K5=aux!K3,INDEX(HEB!B3:B21,MATCH(K6,HEB!A3:A21,0))))) -> 0.081 | M8: transv. range diff (right) | N8: [m] | O8: 5.85 | Q8: steel profiles | R8: [kN/m2] | S8: =K11/((O14+O15)/1000)+IF(K2=aux!C2,0,K8/K7) -> 0.1669953917 | U8: Mel,ELS,pers,A | V8: [kNm] | W8: =$S$25*$O$2^2*N26 -> 0 | Y8: Esto permitiría teóricamente redistribuciones negativas (i.e. hacia arriba),
A9: γc | B9: [-] | C9: 1.5 | E9: r top | F9: [mm] | G9: 20 | I9: BEAM PROPERTIES | M9: Ladj,A | N9: [m] | O9: =IF(O3=aux!A1,O2,IF(O4=0,O2,O4)) -> 6 | Q9: slab | R9: [kN/m2] | S9: =25*G8/1000 -> 2.214285714 | U9: Mel,ELS,pers,C | V9: [kNm] | W9: =$S$25*$O$2^2*N27 -> 90.0977625 | Y9: En cualquier caso, se ofrece el valor de Md+,C (positivo solictación en CV)
A10: fcd | B10: [N/mm2] | C10: =C3/C9 -> 16.66666667 | E10: r wave | F10: [mm] | G10: 25 | I10: class (bending) | J10: [-] | K10: =IF(K3=aux!K2,INDEX(IF(C36=aux!B2,IPE!X3:X21,IF(C36=aux!B3,IPE!Y3:Y21,IPE!Z3:Z21)),MATCH(K4,IPE!A3:A21,0)),IF(K3=aux!K3,INDEX(IF(C36=aux!B2,HEB!X3:X21,IF(C36=aux!B3,HEB!Y3:Y21,HEB!Z3:Z21)),MATCH(K4,HEB!A3:A21,0)))) -> 1 | M10: Ladj,B | N10: [m] | O10: =IF(O3=aux!A1,O2,IF(O5=0,O2,O5)) -> 2.4 | Q10: G | R10: [kN/m2] | S10: =SUM(S2:S4)+SUM(S8:S9) -> 4.381281106 | U10: Mel,ELS,pers,B | V10: [kNm] | W10: =$S$25*$O$2^2*N28 -> 180.195525 | Y10: para que se pueda obligar a que no aparezca ahí una rótula plástica.
A11: fcm | B11: [N/mm2] | C11: =C3+8 -> 33 | E11: # φ | F11: [mm] | G11: 6 | I11: weight | J11: [kN/m] | K11: =0.01*IF(K3=aux!K2,INDEX(IPE!B3:B21,MATCH(K4,IPE!A3:A21,0)),IF(K3=aux!K3,INDEX(HEB!B3:B21,MATCH(K4,HEB!A3:A21,0)))) -> 0.613 | M11: Lmed,A | N11: [m] | O11: =AVERAGE(O2,O9) -> 6 | Q11: γG | R11: - | S11: 1.35 | U11: manual | V11: [Y/N] | W11: N
A12: Ecm,28 | B12: [N/mm2] | C12: =22000*((C3+8)/10)^0.3 -> 31475.80621 | E12: distance | F12: [mm] | G12: 200 | I12: b | J12: [mm] | K12: =IF(K3=aux!K2,INDEX(IPE!D3:D21,MATCH(K4,IPE!A3:A21,0)),IF(K3=aux!K3,INDEX(HEB!D3:D21,MATCH(K4,HEB!A3:A21,0)))) -> 200 | M12: Lmed,B | N12: [m] | O12: =AVERAGE(O2,O10) -> 4.2 | Q12: γQ | R12: - | S12: 1.5 | U12: Vel,ELU,pers,A | V12: [kN]
A13: s (coef. cem) | B13: [-] | C13: =IF(C4=aux!V2,aux!W2,IF(C4=aux!V3,aux!W3,aux!W4)) -> 0.25 | E13: φ ribs | F13: [mm] | G13: 0 | I13: h | J13: [mm] | K13: =K4 -> 200 | M13: transv. range right | N13: [m] | O13: =IF(O6=aux!A1,O7,O8) -> 5.85 | Q13: Ψ1 | R13: - | S13: =IF(S6=aux!G2,aux!H2,IF(S6=aux!G3,aux!H3,IF(S6=aux!G4,aux!H4,IF(S6=aux!G5,aux!H5)))) -> 0.5 | U13: Vel,ELU,pers,B | V13: [kN] | Y13: La evaluación de la interacción por cortante se hace
A14: t ∞ | B14: [days] | C14: 10000 | E14: each n ribs | F14: [-] | G14: 0 | I14: tf | J14: [mm] | K14: =IF(K3=aux!K2,INDEX(IPE!F3:F21,MATCH(K4,IPE!A3:A21,0)),IF(K3=aux!K3,INDEX(HEB!F3:F21,MATCH(K4,HEB!A3:A21,0)))) -> 15 | M14: b,left | N14: [mm] | O14: =O7/2*1000 -> 2500 | Q14: Ψ2 | R14: - | S14: =IF(S6=aux!G2,aux!I2,IF(S6=aux!G3,aux!I3,IF(S6=aux!G4,aux!I4,IF(S6=aux!G5,aux!I5)))) -> 0.3 | U14: Mel,ELU,pers,A | V14: [kNm] | Y14: sobre la distribución de solicitaciones elástica;
A15: βcc | B15: [-] | C15: =EXP(C13*(1-(28/C14)^0.5)) -> 1.267151215 | E15: deck thickness | F15: [mm] | G15: 0.8 | I15: tw | J15: [mm] | K15: =IF(K3=aux!K2,INDEX(IPE!E3:E21,MATCH(K4,IPE!A3:A21,0)),IF(K3=aux!K3,INDEX(HEB!E3:E21,MATCH(K4,HEB!A3:A21,0)))) -> 9 | M15: b,right | N15: [mm] | O15: =O13/2*1000 -> 2925 | Q15: ηfi | R15: - | S15: =S17/S16 -> 0.5647080042 | U15: Mel,ELU,pers,C | V15: [kNm] | Y15: puede ser una simplificación suficiente.
A16: Creep factor EC4 | B16: [-] | C16: =1+C17*C18 -> 2.957627431 | E16: eq deck thickness | F16: [mm] | G16: =G15*(G5+2*G3)/G5 -> 1.257142857 | I16: tw,eq | J16: [mm] | K16: =K20/K17 -> 10.63905882 | Q16: P,ELU,pers | R16: [kN/m2] | S16: =S10*S11+S5*S12 -> 10.41472949 | U16: Mel,ELU,pers,B | V16: [kNm]
A17: ΨL | B17: [-] | C17: 1.1 | I17: hw | J17: [mm] | K17: =K13-2*K14 -> 170 | M17: BOUNDARY CONDITIONS | Q17: P,ELU,acc | R17: [kN/m2] | S17: =S10+S5*S13 -> 5.881281106 | U17: Mel,ELS,pers,A | V17: [kNm] | Y17: Para el cálculo de conectores, se podría hacer por capacidad,
A18: ϕt | B18: [-] | C18: =C19*C22 -> 1.779661301 | E18: STUDS | I18: A | J18: [mm2] | K18: =IF(K3=aux!K2,INDEX(IPE!H3:H21,MATCH(K4,IPE!A3:A21,0)),IF(K3=aux!K3,INDEX(HEB!H3:H21,MATCH(K4,HEB!A3:A21,0)))) -> 7808.64 | M18: constraint A | N18: pin | Q18: P,ELS,pers | R18: [kN/m2] | S18: =S10+S5 -> 7.381281106 | U18: Mel,ELS,pers,C | V18: [kNm] | Y18: es decir, para que siempre tuvieran más resistencia que las
A19: ϕ0 | B19: [-] | C19: =C20*16.8/(C11)^0.5/(0.1+C7^0.2) -> 1.855917267 | E19: n in a row | F19: [-] | G19: 1 | I19: A,flange | J19: [mm2] | K19: =K12*K14 -> 3000 | M19: constraint B | N19: fix | Q19: P,ELS,cuasi | R19: [kN/m2] | S19: =S10+S14*S5 -> 5.281281106 | U19: Mel,ELS,pers,B | V19: [kNm] | Y19: piezas, pero parece exagerado sobre todo cuando hay mucha
A20: ϕRH | B20: [-] | C20: =(1+(1-C6)/(0.1*C21^(1/3))*IF(C11<=35,1,(35/C11)^0.7))*IF(C11<=35,1,(35/C11)^0.2) -> 1 | E20: b0 | F20: [mm] | G20: 0 | I20: A,web | J20: [mm2] | K20: =K18-2*K19 -> 1808.64 | M20: global constraint | N20: =IF(CONCATENATE(N18,"-",N19)="fix-pin","IMPOSSIBLE",CONCATENATE(N18,"-",N19)) -> pin-fix | Q20: q,ELU,pers | R20: [kN/m] | S20: =S16*($O$14+$O$15)/1000 -> 56.4999075 | U20: Vel,ELU,pers,A | V20: [kN] | W20: =IF($W$11=aux!$A$2,W3,W12) -> 127.1247919 | Y20: sobrerresistencia a momento.
A21: h0 | B21: [mm] | C21: =2*P36*G8/IF(C5=aux!X2,2*P36,IF(OR(C5=aux!X3,C5=aux!X4),P36,1E-99)) -> 2.258571429e+104 | E21: diam | F21: [mm] | G21: 16 | I21: I | J21: [mm4] | K21: =10000*IF(K3=aux!K2,INDEX(IPE!I3:I21,MATCH(K4,IPE!A3:A21,0)),IF(K3=aux!K3,INDEX(HEB!I3:I21,MATCH(K4,HEB!A3:A21,0)))) -> 56961700 | M21: factor L A | N21: =IF(N20=aux!L2,aux!M2,IF(N20=aux!L3,aux!M3,IF(N20=aux!L4,aux!M4,IF(N20=aux!L5,aux!M5)))) -> 0.85 | Q21: q,ELU,acc | R21: [kN/m] | S21: =S17*($O$14+$O$15)/1000 -> 31.90595 | U21: Vel,ELU,pers,B | V21: [kN] | W21: =IF($W$11=aux!$A$2,W4,W13) -> 211.8746531 | Y21: Se calcula a partir de las solicitaciones elásticas, suponiendo
A22: βc(t,t0) | B22: [-] | C22: =((C14-C7)/(C23+C14-C7))^0.3 -> 0.9589119795 | E22: h | F22: [mm] | G22: 90 | I22: Npl,Rd | J22: [kN] | K22: =IF(K3=aux!K2,INDEX(IF(C36=aux!B2,IPE!AA3:AA21,IF(C36=aux!B3,IPE!AB3:AB21,IF(C36=aux!B4,IPE!AC3:AC21))),MATCH(K4,IPE!A3:A21,0)),IF(K3=aux!K3,INDEX(IF(C36=aux!B2,HEB!AA3:AA21,IF(C36=aux!B3,HEB!AB3:AB21,IF(C36=aux!B4,HEB!AC3:AC21))),MATCH(K4,HEB!A3:A21,0)))) -> 2045.12 | M22: factor L C | N22: =IF(N20=aux!L2,aux!N2,IF(N20=aux!L3,aux!N3,IF(N20=aux!L4,aux!N4,IF(N20=aux!L5,aux!N5)))) -> 0.85 | Q22: q,ELS,slab | R22: [kN/m] | S22: =(S8+S9)*($O$14+$O$15)/1000 -> 12.91845 | U22: Mel,ELU,pers,A | V22: [kNm] | W22: =IF($W$11=aux!$A$2,W5,W14) -> 0 | Y22: que el eje neutro es el mismo que para la situación última, es decir,
A23: βH | B23: [-] | C23: =MIN(1.5*(1+(1.2*C6)^18)*C21+250*IF(C11<=35,1,(35/C11)^0.5),1500*IF(C11<=35,1,(35/C11)^0.5)) -> 1500 | E23: hmax | F23: [mm] | G23: =G6-G9 -> 100 | I23: Vpl,Rd | J23: [kN] | K23: =IF(K3=aux!K2,INDEX(IF(C36=aux!B2,IPE!AJ3:AJ21,IF(C36=aux!B3,IPE!AK3:AK21,IF(C36=aux!B4,IPE!AL3:AL21))),MATCH(K4,IPE!A3:A21,0)),IF(K3=aux!K3,INDEX(IF(C36=aux!B2,HEB!AJ3:AJ21,IF(C36=aux!B3,HEB!AK3:AK21,IF(C36=aux!B4,HEB!AL3:AL21))),MATCH(K4,HEB!A3:A21,0)))) -> 375.55 | M23: factor L B | N23: =IF(N20=aux!L2,aux!O2,IF(N20=aux!L3,aux!O3,IF(N20=aux!L4,aux!O4,IF(N20=aux!L5,aux!O5)))) -> 0.5 | Q23: q,ELS,G-self_weight | R23: [kN/m] | S23: =(S10-S8-S9)*($O$14+$O$15)/1000 -> 10.85 | U23: Mel,ELU,pers,C | V23: [kNm] | W23: =IF($W$11=aux!$A$2,W6,W15) -> 127.1247919 | Y23: como si en esa situación se pudiera asumir diagramas rectangulares
A24: Creep factor EHE-08 | B24: [-] | C24: =1+C25 -> 2.289985558 | E24: h/d | F24: [-] | G24: =G22/G21 -> 5.625 | I24: Ma,pl,Rd | J24: [kNm] | K24: =IF(K3=aux!K2,INDEX(IF(C36=aux!B2,IPE!AD3:AD21,IF(C36=aux!B3,IPE!AE3:AE21,IF(C36=aux!B4,IPE!AF3:AF21))),MATCH(K4,IPE!A3:A21,0)),IF(K3=aux!K3,INDEX(IF(C36=aux!B2,HEB!AD3:AD21,IF(C36=aux!B3,HEB!AE3:AE21,IF(C36=aux!B4,HEB!AF3:AF21))),MATCH(K4,HEB!A3:A21,0)))) -> 168.29 | M24: factor V A | N24: =IF(N20=aux!L2,aux!P2,IF(N20=aux!L3,aux!P3,IF(N20=aux!L4,aux!P4,IF(N20=aux!L5,aux!P5)))) -> 0.375 | Q24: q,ELS,Q | R24: [kN/m] | S24: =S5*($O$14+$O$15)/1000 -> 16.275 | U24: Mel,ELU,pers,B | V24: [kNm] | W24: =IF($W$11=aux!$A$2,W7,W16) -> 254.2495838 | Y24: a menor fcd y fsd en vez de diagramas triangulares
A25: λ | B25: [-] | C25: =C26/(1+50*C29) -> 1.289985558 | E25: α | F25: [-] | G25: =IF(G24<4,0.2*(G24+1),1) -> 1 | I25: c/t web limit bending+compression | J25: [-] | M25: factor V B | N25: =IF(N20=aux!L2,aux!Q2,IF(N20=aux!L3,aux!Q3,IF(N20=aux!L4,aux!Q4,IF(N20=aux!L5,aux!Q5)))) -> 0.625 | Q25: q,ELS,pers | R25: [kN/m] | S25: =S18*($O$14+$O$15)/1000 -> 40.04345 | U25: Mel,ELS,pers,A | V25: [kNm] | W25: =IF($W$11=aux!$A$2,W8,W17) -> 0 | Y25: Se supone, conservadoramente, que en vigas paralelas a las ondas
A26: ξ | B26: [-] | C26: =2-0.3 -> 1.7 | E26: Prd | F26: [kN] | G26: =MIN(0.8*C46*PI()/4*G21^2/C47,0.29*G25*G21^2*(C3*C12)^0.5/C47)/1000 -> 52.6849274 | I26: c/t flange limit | J26: [-] | M26: factor M A | N26: =IF(N20=aux!L2,aux!R2,IF(N20=aux!L3,aux!R3,IF(N20=aux!L4,aux!R4,IF(N20=aux!L5,aux!R5)))) -> 0 | Q26: q,ELS,cuasi | R26: [kN/m] | S26: =S19*($O$14+$O$15)/1000 -> 28.65095 | U26: Mel,ELS,pers,C | V26: [kNm] | W26: =IF($W$11=aux!$A$2,W9,W18) -> 90.0977625 | Y26: el espacio para conectores es una onda, es decir, se desprecia la
A27: d eq | B27: [mm] | C27: =O41+K13/2 -> 220 | E27: hsc | F27: [mm] | G27: =MIN(G22,G3+75) -> 90 | M27: factor M C | N27: =IF(N20=aux!L2,aux!S2,IF(N20=aux!L3,aux!S3,IF(N20=aux!L4,aux!S4,IF(N20=aux!L5,aux!S5)))) -> 0.0625 | U27: Mel,ELS,pers,B | V27: [kNm] | W27: =IF($W$11=aux!$A$2,W10,W19) -> 180.195525 | Y27: posible separación de chapas en el apoyo lateral en la viga
A28: As' | B28: [mm2] | C28: =H37+P36*G16 -> 1783.106021 | E28: k (kl or kt) | F28: [-] | G28: =IF(G3=0,1,IF(K2=aux!C2,MIN(0.7/(G19)^0.5*G4/G3*(G27/G3-1),0.6),IF(K2=aux!C3,MIN(0.6*G4/G3*(G27/G3-1),1)))) -> 0.5 | M28: factor M B | N28: =IF(N20=aux!L2,aux!T2,IF(N20=aux!L3,aux!T3,IF(N20=aux!L4,aux!T4,IF(N20=aux!L5,aux!T5)))) -> 0.125 | U28: interaction V-M A | V28: [Y/N] | W28: =IF(W20>0.5*$K$23,aux!A1,aux!A2) -> N
A29: ρ' | B29: [-] | C29: =C28/(P36*C27) -> 0.006356884212 | E29: Prd,eff | F29: [kN] | G29: =G26*G28 -> 26.3424637 | U29: interaction V-M B | V29: [Y/N] | W29: =IF(W21>0.5*$K$23,aux!A1,aux!A2) -> Y | Y29: El cálculo de la flecha se hace con I+;
A30: Creep factor | B30: [-] | C30: =IF(C8=aux!AC2,C16,IF(C8=aux!AC3,C24,AVERAGE(C16,C24))) -> 2.623806495 | M30: EFFECTIVE WIDTH | O30: =CONCATENATE("A (",N18,")") -> A (pin) | P30: C | Q30: =CONCATENATE("B (",N19,")") -> B (fix) | U30: ρ interaction A | V30: - | W30: =IF(W28=aux!A1,(2*W20/K23-1)^2,0) -> 0 | Y30: para voladizos puede ser del lado de la inseguridad,
A31: STEEL (REINFORCEMENT) | E31: COMPOSITE SECTION STIFNESS | M31: Le,A | N31: [mm] | O31: =O11*N21*1000 -> 5100 | P31: =O2*N22*1000 -> 5100 | Q31: =N23*1000*(IF(N20=aux!L2,O2,O12)) -> 2100 | U31: ρ interaction B | V31: - | W31: =IF(W28=aux!A1,(2*W21/K23-1)^2,0) -> 0 | Y31: por lo que se toma una beff mitad de la considerada
A32: fyk | B32: [N/mm2] | C32: 500 | E32: Section | F32: [-] | G32: A | H32: C | I32: C | J32: B | M32: be,left | N32: [mm] | O32: =MIN($O$31/8,O14) -> 637.5 | P32: =MIN($P$31/8,O14) -> 637.5 | Q32: =MIN($Q$31/8,O14) -> 262.5 | Y32: en negativos
A33: γs,reinf | B33: [-] | C33: 1.15 | E33: Sign bending | F33: [-] | G33: =aux!AB3 -> - | H33: =aux!AB2 -> + | I33: =aux!AB2 -> + | J33: =aux!AB3 -> - | M33: be,right | N33: [mm] | O33: =MIN($O$31/8,O15) -> 637.5 | P33: =MIN($P$31/8,O15) -> 637.5 | Q33: =MIN($Q$31/8,O15) -> 262.5
A34: fyd | B34: [N/mm2] | C34: =C32/C33 -> 434.7826087 | E34: time | F34: [-] | G34: =aux!AA4 -> any | H34: =aux!AA2 -> short | I34: =aux!AA3 -> long | J34: =aux!AA4 -> any | M34: βleft | N34: [-] | O34: =IF(N18=aux!F3,MIN(1,0.55+0.025*O31/P36),1) -> 0.65 | P34: 1 | Q34: =IF(N19=aux!F3,MIN(1,0.55+0.025*Q31/P36),1) -> 1 | Y34: El cálculo de la losa en situación persistente mejor hacerlo con tablas
A35: STEEL (PROFILE) | E35: Ac,net | F35: [mm2] | G35: =IF(G33=aux!$AB$2,$O$36*$G$8-G37,0) -> 0 | H35: =IF(H33=aux!$AB$2,$P$36*$G$8-H37,0) -> 112748.3226 | I35: =IF(I33=aux!$AB$2,$P$36*$G$8-I37,0) -> 112748.3226 | J35: =IF(J33=aux!$AB$2,$Q$36*$G$8-J37,0) -> 0 | M35: βright | N35: [-] | O35: =IF(N18=aux!F3,MIN(1,0.55+0.025*O31/P36),1) -> 0.65 | P35: 1 | Q35: =IF(N19=aux!F3,MIN(1,0.55+0.025*Q31/P36),1) -> 1 | Y35: (la HANSA MT60 es muy completa), puesto que el comportamiento es
A36: fsk | B36: [N/mm2] | C36: 275 | E36: Ac,net,hom | F36: [mm2] | G36: =G35/IF(G34=aux!$AA$2,$C$42,$C$43) -> 0 | H36: =H35/IF(H34=aux!$AA$2,$C$42,$C$43) -> 16899.25881 | I36: =I35/IF(I34=aux!$AA$2,$C$42,$C$43) -> 6440.741285 | J36: =J35/IF(J34=aux!$AA$2,$C$42,$C$43) -> 0 | M36: beff | N36: [mm] | O36: =G20+O34*O32+O35*O33 -> 828.75 | P36: =G20+P34*P32+P35*P33 -> 1275 | Q36: =G20+Q34*Q32+Q35*Q33 -> 525 | Y36: de conexión parcial con la chapa, no total. Además, estas tablas tienen en
A37: γs,profile | B37: [-] | C37: 1.05 | E37: As,reinf | F37: [mm2] | G37: =PI()/4*($O$37*$G$11^2+$C$57*$D$57^2+IF(OR($K$2=aux!E2,$G$13=0),0,$O$36/($G$14*$G$5)*$G$13^2)) -> 117.161771 | H37: =PI()/4*($P$37*$G$11^2+IF(OR($K$2=aux!E2,$G$13=0),0,$P$36/($G$14*$G$5)*$G$13^2)) -> 180.2488785 | I37: =PI()/4*($P$37*$G$11^2+IF(OR($K$2=aux!F2,$G$13=0),0,$P$36/($G$14*$G$5)*$G$13^2)) -> 180.2488785 | J37: =PI()/4*($Q$37*$G$11^2+$K$57*$L$57^2+IF(OR($K$2=aux!E2,$G$13=0),0,$Q$36/($G$14*$G$5)*$G$13^2)) -> 526.6094686 | M37: n. reinf. grill | N37: [mm] | O37: =O36/$G$12 -> 4.14375 | P37: =P36/$G$12 -> 6.375 | Q37: =Q36/$G$12 -> 2.625 | Y37: cuenta el estado límite de cortante y rasante, la flecha según el apuntalamiento, etc.
A38: fsd | B38: [N/mm2] | C38: =C36/C37 -> 261.9047619 | E38: As,prof | F38: [mm2] | G38: =$K$18 -> 7808.64 | H38: =$K$18 -> 7808.64 | I38: =$K$18 -> 7808.64 | J38: =$K$18 -> 7808.64
A39: fsd,eff,A | B39: [N/mm2] | C39: =$C$38*(1-W30) -> 261.9047619 | E39: cdg | F39: [mm] | G39: =(G36*$G$8/2+G37*$G$9+G38*($O$41+$K$13/2))/(G36+G37+G38) -> 217.0435352 | H39: =(H36*$G$8/2+H37*$G$9+H38*($O$41+$K$13/2))/(H36+H37+H38) -> 99.24007023 | I39: =(I36*$G$8/2+I37*$G$9+I38*($O$41+$K$13/2))/(I36+I37+I38) -> 139.0706888 | J39: =(J36*$G$8/2+J37*$G$9+J38*($O$41+$K$13/2))/(J36+J37+J38) -> 207.3642782 | M39: FIBRES | Y39: FALTA
A40: fsd,eff,B | B40: [N/mm2] | C40: =$C$38*(1-W31) -> 261.9047619 | E40: d,c | F40: [mm] | G40: =$G$8/2-G39 -> -172.7578209 | H40: =$G$8/2-H39 -> -54.95435595 | I40: =$G$8/2-I39 -> -94.78497451 | J40: =$G$8/2-J39 -> -163.0785639 | M40: top wave | N40: [mm] | O40: =G2 -> 60 | Y40: cálculo con tipo de sección distinto a 1 (no se permite solicitaciones plásticas)
A41: Es | B41: [N/mm2] | C41: 210000 | E41: d,reinf | F41: [mm] | G41: =IF(AND($G$11=0,$G$13=0),0,(($O$37*$G$11^2+$C$57*$D$57^2)*$G$9+IF(OR($K$2=aux!E2,$G$13=0),0,$O$36/($G$14*$G$5)*$G$13^2*($O$41-$G$10)))/(($O$37*$G$11^2+$C$57*$D$57^2)+IF(OR($K$2=aux!E2,$G$13=0),0,$O$36/($G$14*$G$5)*$G$13^2))-G39) -> -197.0435352 | H41: =IF(AND($G$11=0,$G$13=0),0,(($O$37*$G$11^2+$C$57*$D$57^2)*$G$9+IF(OR($K$2=aux!F2,$G$13=0),0,$O$36/($G$14*$G$5)*$G$13^2*($O$41-$G$10)))/(($O$37*$G$11^2+$C$57*$D$57^2)+IF(OR($K$2=aux!F2,$G$13=0),0,$O$36/($G$14*$G$5)*$G$13^2))-H39) -> -79.24007023 | I41: =IF(AND($G$11=0,$G$13=0),0,(($O$37*$G$11^2+$C$57*$D$57^2)*$G$9+IF(OR($K$2=aux!G2,$G$13=0),0,$O$36/($G$14*$G$5)*$G$13^2*($O$41-$G$10)))/(($O$37*$G$11^2+$C$57*$D$57^2)+IF(OR($K$2=aux!G2,$G$13=0),0,$O$36/($G$14*$G$5)*$G$13^2))-I39) -> -119.0706888 | J41: =IF(AND($G$11=0,$G$13=0),0,(($O$37*$G$11^2+$C$57*$D$57^2)*$G$9+IF(OR($K$2=aux!H2,$G$13=0),0,$O$36/($G$14*$G$5)*$G$13^2*($O$41-$G$10)))/(($O$37*$G$11^2+$C$57*$D$57^2)+IF(OR($K$2=aux!H2,$G$13=0),0,$O$36/($G$14*$G$5)*$G$13^2))-J39) -> -187.3642782 | M41: bottom wave | N41: [mm] | O41: =G6 -> 120 | Y41: ver qué conflicto puede surgir entre grandes redistribuciones y flecha con solicitaciones elásticas
A42: n,28 | B42: [-] | C42: =C41/C12 -> 6.671790981 | E42: d,prof | F42: [mm] | G42: =($O$44-$K$13/2)-G39 -> 2.956464832 | H42: =($O$44-$K$13/2)-H39 -> 120.7599298 | I42: =($O$44-$K$13/2)-I39 -> 80.92931121 | J42: =($O$44-$K$13/2)-J39 -> 12.63572184 | M42: bottom upper flange | N42: [mm] | O42: =O41+K14 -> 135 | Y42: calcular redistribución media de la solución elegida
A43: n,1000 | B43: [-] | C43: =C42*C30 -> 17.50548851 | E43: bc,net,hom,eq | F43: [mm] | G43: =G36/$G$8 -> 0 | H43: =H36/$G$8 -> 190.7980834 | I43: =I36/$G$8 -> 72.71804677 | J43: =J36/$G$8 -> 0 | M43: bottom web | N43: [mm] | O43: =O44-K14 -> 305
A44: ε steel material | B44: - | C44: =(235/C36)^0.5 -> 0.9244162777 | E44: Ic,net,hom,eq | F44: [mm4] | G44: =G43*$G$8^3/12 -> 0 | H44: =H43*$G$8^3/12 -> 11047746.75 | I44: =I43*$G$8^3/12 -> 4210579.847 | J44: =J43*$G$8^3/12 -> 0 | M44: bottom | N44: [mm] | O44: =O41+K13 -> 320
A45: STEEL (STUDS) | E45: Is,prof | F45: [mm4] | G45: =$K$21 -> 56961700 | H45: =$K$21 -> 56961700 | I45: =$K$21 -> 56961700 | J45: =$K$21 -> 56961700
A46: fu,studs | B46: [N/mm2] | C46: 450 | E46: I no connect | F46: [mm4] | G46: =G45+G44 -> 56961700 | H46: =H45+H44 -> 68009446.75 | I46: 61172279.85 | J46: 56961700
A47: γv | B47: [-] | C47: 1.25 | E47: I,hom, full connect | F47: [mm4] | G47: =G44+G36*G40^2+G37*G41^2+G45+G38*G42^2 -> 61578893.91 | H47: =H44+H36*H40^2+H37*H41^2+H45+H38*H42^2 -> 234049761.7 | I47: =I44+I36*I40^2+I37*I41^2+I45+I38*I42^2 -> 172735774.8 | J47: =J44+J36*J40^2+J37*J41^2+J45+J38*J42^2 -> 76695260.59
E48: ΔI full connection | F48: [mm4] | G48: =G47-G46 -> 4617193.91 | H48: =H47-H46 -> 166040315 | I48: 111563494.9 | J48: 19733560.59
E49: I,hom | F49: [mm4] | G49: =G46+A60*G48 -> 61578893.91 | H49: =H46+E60*H48 -> 134425572.7 | I49: =I46+E60*I48 -> 105797677.8 | J49: =J46+I60*J48 -> 76695260.59
E50: I,hom/Is,prof | F50: [-] | G50: =G49/G45 -> 1.081057867 | H50: =H49/H45 -> 2.359929088 | I50: =I49/I45 -> 1.857347618 | J50: =J49/J45 -> 1.346435598
E51: EI | F51: [Nmm2] | G51: =$C$41*G49 -> 1.293156772e+13 | H51: =$C$41*H49 -> 2.822937028e+13 | I51: =$C$41*I49 -> 2.221751234e+13 | J51: =$C$41*J49 -> 1.610600472e+13
E52: EI,eq | F52: [Nmm2] | H52: =IF(N20=aux!$L$2,J51,IF(N20=aux!$L$3,H51,IF(N20=aux!$L$4,0.75*H51+0.25*J51,0.25*(G51+J51)+0.5*H51))) -> 2.519852889e+13 | I52: =IF(N20=aux!$L$2,J51,IF(N20=aux!$L$3,I51,IF(N20=aux!$L$4,0.75*I51+0.25*J51,0.25*(G51+J51)+0.5*I51))) -> 2.068963544e+13
E53: Stiffness improvement | H53: =H52/($C$41*$K$21) -> 2.106555716 | I53: =I52/($C$41*$K$21) -> 1.729619613
A55: ULS | W55: FIRE
C56: n | D56: φ | K56: n | L56: φ | W56: =I1 -> STEEL BEAM
A57: α web class | B57: A | E57: α web class | F57: C | I57: α web class | J57: B | K57: 4 | L57: 12 | W57: Am | X57: [mm] | Y57: =IF(K3=aux!K2,INDEX(IPE!AN3:AN21,MATCH(K4,IPE!A3:A21,0)),IF(K3=aux!K3,INDEX(HEB!AN3:AN21,MATCH(K4,HEB!A3:A21,0)))) -> 951.0973355
A58: =IF(AND(D58>$O$42,D58<$O$43,ABS(MIN(B64:B65))>MAX(B64:B65)),ABS(MIN(B64:B65))/(ABS(MIN(B64:B65))+MAX(B64:B65)),0) -> 0.5537690756 | B58: y | C58: [mm] | D58: 210.8592572 | E58: =IF(AND(H58>$O$42,H58<$O$43,ABS(MIN(F64:F65))>MAX(F64:F65)),ABS(MIN(F64:F65))/(ABS(MIN(F64:F65))+MAX(F64:F65)),0) -> 0 | F58: y | G58: [mm] | H58: 132.3352364 | I58: =IF(AND(L58>$O$42,L58<$O$43,ABS(MIN(J64:J65))>MAX(J64:J65)),ABS(MIN(J64:J65))/(ABS(MIN(J64:J65))+MAX(J64:J65)),0) -> 0.7416769913 | J58: y | K58: [mm] | L58: 178.9149115 | W58: V | X58: [mm2] | Y58: =K18 -> 7808.64
A59: η,A | B59: N | C59: z | D59: M | E59: η,C | F59: N | G59: z | H59: M | I59: η,B | J59: N | K59: z | L59: M | W59: Am/V | X59: [m] | Y59: =1000*Y57/Y58 -> 121.8006382
A60: 1 | B60: [kN] | C60: [mm] | D60: [kNm] | E60: 0.4 | F60: [kN] | G60: [mm] | H60: [kNm] | I60: 1 | J60: [kN] | K60: [mm] | L60: [kNm] | W60: γmed | X60: - | Y60: =IF(N20=aux!L2,(1-1/L72)*C33+1/L72*C37,IF(N20=aux!L3,(1-1/H72)*C9+1/H72*C37,IF(N20=aux!L4,AVERAGE((1-1/L72)*C33+1/L72*C37,(1-1/H72)*C9+1/H72*C37),AVERAGE((1-1/L72)*C33+1/L72*C37,(1-1/H72)*C9+1/H72*C37,(1-1/D72)*C33+1/D72*C37)))) -> 1.13390205
A61: upper slab | B61: =A60*PI()/4*($O$37*$G$11^2+C57*D57^2)*$C$34/1000 -> 50.93990045 | C61: =G9 -> 20 | D61: =B61*C61/1000 -> 1.018798009 | F61: =E60*-P36*C10/1000*(IF(H58<O40,H58,O40)) -> -510 | G61: =IF(H58<O40,H58/2,O40/2) -> 30 | H61: =F61*G61/1000 -> -15.3 | J61: =I60*PI()/4*(Q37*G11^2+K57*L57^2)*C34/1000 -> 228.9606385 | K61: =G9 -> 20 | L61: =J61*K61/1000 -> 4.57921277 | W61: μfi | X61: - | Y61: =S15/Y60*A77 -> 0.3644483976
A62: ribs | B62: =A60*IF(OR($K$2=aux!$C$2,$G$13=0),0,PI()/4*$O$36/($G$14*$G$5)*$G$13^2*$C$34*IF(D58>($O$41-$G$10),1,-1))/1000 -> 0 | C62: =O41-G10 -> 95 | D62: 0 | F62: =E60*-G7*P36*C10/1000*(IF(H58<O40,0,IF(H58<O41,H58-O40,O41-O40))) -> -242.8571429 | G62: =IF(H58<O41,O40+G7*0.5*(H58-O40),O40+G7*0.5*G3) -> 74.28571429 | H62: -18.04081633 | J62: =I60*IF(OR($K$2=aux!$C$2,$G$13=0),0,PI()/4*$O$36/($G$14*$G$5)*$G$13^2*$C$34*IF(L58>($O$41-$G$10),1,-1))/1000 -> 0 | K62: =O41-G10 -> 95 | L62: 0 | W62: d/λp (table) | X62: [m2K/W] | Y62: 0.1
A63: top flange | B63: =$K$19*$C$38/1000*IF(D58<$O$41,-1,IF(D58>$O$42,1,2/$K$14*(D58-$O$41)-1)) -> 785.7142857 | C63: =O41+K14/2 -> 127.5 | D63: 100.1785714 | F63: =$K$19*$C$38/1000*IF(H58<$O$41,1,IF(H58>$O$42,-1,-2/$K$14*(H58-$O$41)+1)) -> -506.5485714 | G63: =O41+K14/2 -> 127.5 | H63: -64.58494286 | J63: =$K$19*$C$38/1000*IF(L58<$O$41,-1,IF(L58>$O$42,1,2/$K$14*(L58-$O$41)-1)) -> 785.7142857 | K63: =O41+K14/2 -> 127.5 | L63: 100.1785714 | W63: R | X63: min | Y63: 90
A64: top web | full web | B64: =IF(D58>$O$43,0,$K$20*$C$39/1000*IF(D58<$O$42,-1,IF(D58>$O$43,1,(D58-$O$42)/$K$17))) -> 211.3757641 | C64: =IF(D58<O42,AVERAGE(O42:O43),O42+(D58-O42)/2) -> 172.9296286 | D64: 36.55313237 | F64: =IF(H58>$O$43,0,$K$20*$C$38/1000*IF(H58<$O$42,1,IF(H58>$O$43,-1,-(H58-$O$42)/$K$17))) -> 473.6914286 | G64: =IF(H58<O42,AVERAGE(O42:O43),O42+(H58-O42)/2) -> 220 | H64: 104.2121143 | J64: =IF(L58>$O$43,0,$K$20*$C$40/1000*IF(L58<$O$42,-1,IF(L58>$O$43,1,(L58-$O$42)/$K$17))) -> 122.365395 | K64: =IF(L58<O42,AVERAGE(O42:O43),O42+(L58-O42)/2) -> 156.9574557 | L64: 19.20616108 | W64: λp | X64: [w/mK] | Y64: 0.012
A65: bottom web | full web | B65: =-$K$16*$C$39/1000*IF(D58<$O$42,0,IF(D58>$O$43,$K$17,$O$43-D58)) -> -262.3156645 | C65: =IF(D58>O43,AVERAGE(O42:O43),D58+0.5*(O43-D58)) -> 257.9296286 | D65: -67.65898192 | F65: =$K$16*$C$38/1000*IF(H58<$O$42,0,IF(H58>$O$43,$K$17,$O$43-H58)) -> 0 | G65: =IF(H58>O43,AVERAGE(O42:O43),H58+0.5*(O43-H58)) -> 218.6676182 | H65: 0 | J65: =-$K$16*$C$40/1000*IF(L58<$O$42,0,IF(L58>$O$43,$K$17,$O$43-L58)) -> -351.3260335 | K65: =IF(L58>O43,AVERAGE(O42:O43),L58+0.5*(O43-L58)) -> 241.9574557 | L65: -85.00595321 | W65: d paint | X65: [mm] | Y65: =1000*Y62*Y64 -> 1.2
A66: bottom flange | B66: =$K$19*$C$38/1000*IF(D58<$O$43,-1,IF(D58>$O$44,1,2/$K$14*(D58-$O$43)-1)) -> -785.7142857 | C66: =O44-K14/2 -> 312.5 | D66: -245.5357143 | F66: =$K$19*$C$38/1000*IF(H58<$O$43,1,IF(H58>$O$44,-1,-2/$K$14*(H58-$O$43)+1)) -> 785.7142857 | G66: =O44-K14/2 -> 312.5 | H66: 245.5357143 | J66: =$K$19*$C$38/1000*IF(L58<$O$43,-1,IF(L58>$O$44,1,2/$K$14*(L58-$O$43)-1)) -> -785.7142857 | K66: =O44-K14/2 -> 312.5 | L66: -245.5357143 | X66: max | Y66: 3
A67: Nd,ELU [kN] | B67: =SUM(B61:B66) -> 0 | C67: Mr-,ELU [kNm] | D67: =IF(N20=aux!$L$5,SUM(D61:D66),0) -> 0 | E67: Nd,ELU [kN] | F67: =SUM(F61:F66) -> 0 | G67: Mr+,ELU [kNm] | H67: =IF(N20=aux!L2,0,SUM(H61:H66)) -> 251.8220694 | I67: Nd,ELU [kN] | J67: =SUM(J61:J66) -> 0 | K67: Mr-,ELU [kNm] | L67: =IF(N20=aux!$L$3,0,SUM(L61:L66)) -> -206.5777222 | W67: SLAB
C68: Mel,d,ELU [kNm] | D68: =-W5 -> 0 | G68: Mel,d,ELU [kNm] | H68: =W6 -> 127.1247919 | K68: Mel,d,ELU [kNm] | L68: =-W7 -> -254.2495838 | W68: L | X68: [m] | Y68: 1.95
C69: Mel,ELS,pers [kNm] | D69: =-W25 -> 0 | G69: Mel,ELS,pers [kNm] | H69: =W26 -> 90.0977625 | K69: Mel,ELS,pers [kNm] | L69: =-W27 -> -180.195525 | W69: constraint left | Y69: fix
C70: elast. capac. ULS | D70: =IF(D68=0,1,D67/D68) -> 1 | G70: elast. capac. ULS | H70: =IF(H68=0,1,H67/H68) -> 1.980904477 | K70: elast. capac. ULS | L70: =IF(L68=0,1,L67/L68) -> 0.812499746 | W70: constraint right | Y70: fix
C71: elast. capac. SLS | D71: =IF(D69=0,1,D67/D69) -> 1 | G71: elast. capac. SLS | H71: =IF(H69=0,1,H67/H69) -> 2.794986939 | K71: elast. capac. SLS | L71: =IF(L69=0,1,L67/L69) -> 1.146408726 | W71: global constraint | Y71: =CONCATENATE(Y69,"-",Y70) -> fix-fix
A72: qR [kN/m] | C72: Mr/Mar | D72: =ABS(D67/$K$24) -> 0 | G72: Mr/Mar | H72: =ABS(H67/$K$24) -> 1.49635789 | K72: Mr/Mar | L72: =ABS(L67/$K$24) -> 1.227510382 | W72: U- | X72: [kN/m] | Y72: =(1000/G12)*PI()/4*G11^2*C32/1000 -> 70.68583471
A73: =2/O2^2*(-D67-L67+2*H67+2*ABS((D67*L67-D67*H67-L67*H67+H67^2)^0.5)) -> 77.20760753 | C73: Mpl type | D73: =IF(viga!$A$79=aux!$AG$2,aux!AH2,IF(viga!$A$79=aux!$AG$3,aux!AH3,IF(viga!$A$79=aux!$AG$4,aux!AH4,IF(viga!$A$79=aux!$AG$5,aux!AH5,IF(viga!$A$79=aux!$AG$6,aux!AH6,IF(viga!$A$79=aux!$AG$7,aux!AH7,IF(viga!$A$79=aux!$AG$8,aux!AH8,IF(viga!$A$79=aux!$AG$9,aux!AH9,IF(viga!$A$79=aux!$AG$10,aux!AH10,IF(viga!$A$79=aux!$AG$11,aux!AH11,IF(viga!$A$79=aux!$AG$12,aux!AH12,IF(viga!$A$79=aux!$AG$13,aux!AH13,IF(viga!$A$79=aux!$AG$14,aux!AH14,IF(viga!$A$79=aux!$AG$18,aux!AH18,IF(viga!$A$79=aux!$AG$15,aux!AH15,IF(viga!$A$79=aux!$AG$16,aux!AH16,IF(viga!$A$79=aux!$AG$20,aux!AH20,IF(viga!$A$79=aux!$AG$17,aux!AH17,IF(viga!$A$79=aux!$AG$19,aux!AH19,aux!AH21))))))))))))))))))) -> el | G73: Mpl type | H73: =IF(viga!$A$79=aux!$AG$2,aux!AI2,IF(viga!$A$79=aux!$AG$3,aux!AI3,IF(viga!$A$79=aux!$AG$4,aux!AI4,IF(viga!$A$79=aux!$AG$5,aux!AI5,IF(viga!$A$79=aux!$AG$6,aux!AI6,IF(viga!$A$79=aux!$AG$7,aux!AI7,IF(viga!$A$79=aux!$AG$8,aux!AI8,IF(viga!$A$79=aux!$AG$9,aux!AI9,IF(viga!$A$79=aux!$AG$10,aux!AI10,IF(viga!$A$79=aux!$AG$11,aux!AI11,IF(viga!$A$79=aux!$AG$12,aux!AI12,IF(viga!$A$79=aux!$AG$13,aux!AI13,IF(viga!$A$79=aux!$AG$14,aux!AI14,IF(viga!$A$79=aux!$AG$18,aux!AI18,IF(viga!$A$79=aux!$AG$15,aux!AI15,IF(viga!$A$79=aux!$AG$16,aux!AI16,IF(viga!$A$79=aux!$AG$20,aux!AI20,IF(viga!$A$79=aux!$AG$17,aux!AI17,IF(viga!$A$79=aux!$AG$19,aux!AI19,aux!AI21))))))))))))))))))) -> cal | K73: Mpl type | L73: =IF(viga!$A$79=aux!$AG$2,aux!AJ2,IF(viga!$A$79=aux!$AG$3,aux!AJ3,IF(viga!$A$79=aux!$AG$4,aux!AJ4,IF(viga!$A$79=aux!$AG$5,aux!AJ5,IF(viga!$A$79=aux!$AG$6,aux!AJ6,IF(viga!$A$79=aux!$AG$7,aux!AJ7,IF(viga!$A$79=aux!$AG$8,aux!AJ8,IF(viga!$A$79=aux!$AG$9,aux!AJ9,IF(viga!$A$79=aux!$AG$10,aux!AJ10,IF(viga!$A$79=aux!$AG$11,aux!AJ11,IF(viga!$A$79=aux!$AG$12,aux!AJ12,IF(viga!$A$79=aux!$AG$13,aux!AJ13,IF(viga!$A$79=aux!$AG$14,aux!AJ14,IF(viga!$A$79=aux!$AG$18,aux!AJ18,IF(viga!$A$79=aux!$AG$15,aux!AJ15,IF(viga!$A$79=aux!$AG$16,aux!AJ16,IF(viga!$A$79=aux!$AG$20,aux!AJ20,IF(viga!$A$79=aux!$AG$17,aux!AJ17,IF(viga!$A$79=aux!$AG$19,aux!AJ19,aux!AJ21))))))))))))))))))) -> R | W73: U+ | X73: [kN/m] | Y73: =IF(G13=0,Y72,(1000/(G5*G14))*PI()/4*G13^2*C32/1000) -> 70.68583471
A74: overstrength | C74: Mpl,d,ELU [kNm] | D74: =IF(D73=aux!$AF$2,D68,IF(D73=aux!$AF$3,D67,IF(D73=aux!$AF$4,(2*L74-$S$20*$O$2^2)/2+(2*$S$20*$O$2^2*(H74-L74))^0.5,D68-($H$68-$H$67)))) -> 0 | G74: Mpl,d,ELU [kNm] | H74: =IF(H73=aux!$AF$2,H68,IF(H73=aux!$AF$3,H67,IF(H73=aux!$AF$4,(D74+L74)/2+(D74-L74)^2/(2*$S$20*$O$2^2)+$S$20*$O$2^2/8))) -> 161.4509943 | K74: Mpl,d,ELU [kNm] | L74: =IF(L73=aux!$AF$2,L68,IF(L73=aux!$AF$3,L67,IF(L73=aux!$AF$4,(2*D74-$S$20*$O$2^2)/2+(2*$S$20*$O$2^2*(H74-D74))^0.5,L68-($H$68-$H$67)))) -> -206.5777222 | W74: d- | X74: [mm] | Y74: =G6-G9 -> 100
A75: =A73/S20 -> 1.366508565 | C75: Mpl/Mr | D75: =IF(N20=aux!$L$5,D74/D67,"") ->  | G75: Mpl/Mr | H75: =IF(N20=aux!L2,"",H74/H67) -> 0.6411312349 | K75: Mpl/Mr | L75: =IF(N20=aux!$L$3,"",L74/L67) -> 1 | W75: d+ | X75: [mm] | Y75: =IF(G13=0,G9,G6-G10) -> 20
A76: μ | C76: Fc,max [kN] | D76: =IF(N20=aux!$L$5,B61+B62,"") ->  | G76: Fc,max [kN] | H76: =IF(N20=aux!L2,"",F61+F62) -> -752.8571429 | K76: Fc,max [kN] | L76: =IF(N20=aux!$L$3,"",J61+J62) -> 228.9606385 | W76: b- | X76: [mm] | Y76: =1000*G7 -> 476.1904762
A77: =1/A75 -> 0.7317919737 | C77: Fc,real [kN] | D77: =IF(N20=aux!$L$5,D76*D75,"") ->  | G77: Fc,real [kN] | H77: =IF(N20=aux!L2,"",H76*H75) -> -482.6802297 | K77: Fc,real [kN] | L77: =IF(N20=aux!$L$3,"",L76*L75) -> 228.9606385 | W77: b+ | X77: [mm] | Y77: 1000
A78: type redistribution | C78: V studs [kN] | D78: =D77 ->  | G78: V studs [kN] | H78: =IF(N20=aux!L2,"",-2*H77) -> 965.3604594 | K78: V studs [kN] | L78: =IF(N20=aux!$L$3,"",L77) -> 228.9606385 | W78: z- | X78: [mm] | Y78: =Y74-Y72*1000/(2*Y76*$C$3) -> 97.03119494
A79: =IF(AND(D70>=1,H70>=1,L70>=1),aux!AG2,IF(A75<1,aux!AG3,IF(AND(D70<1,L70>=1,H70>=1,L70<=H70,ABS(D68-D67)<2*(H67-H68)),aux!AG4,IF(AND(D70<1,L70>=1,H70>=1,L70<=H70,ABS(D68-D67)>=2*(H67-H68)),aux!AG5,IF(AND(L70<1,D70>=1,H70>=1,D70<=H70,ABS(L68-L67)<2*(H67-H68)),aux!AG6,IF(AND(L70<1,D70>=1,H70>=1,D70<=H70,ABS(L68-L67)>=2*(H67-H68)),aux!AG7,IF(AND(D70<1,L70<1,H70>=1,D70<=L70),aux!AG8,IF(AND(L70<1,D70<1,H70>=1,L70<=D70),aux!AG9,IF(AND(D70<1,H70>=1,L70>=1,H70<=L70,ABS(D68-D67)<2*(H67-H68)),aux!AG10,IF(AND(D70<1,H70>=1,L70>=1,H70<=L70,ABS(D68-D67)>=2*(H67-H68)),aux!AG11,IF(AND(L70<1,H70>=1,D70>=1,H70<=D70,ABS(L68-L67)<2*(H67-H68)),aux!AG12,IF(AND(L70<1,H70>=1,D70>=1,H70<=D70,ABS(L68-L67)>=2*(H67-H68)),aux!AG13,IF(AND(D70<1,H70<1,L70>=1,D70<=H70),aux!AG14,IF(AND(H70<1,D70>=1,L70>=1,D70<=L70,ABS(D67-D68)<H68-H67),aux!AG18,IF(AND(H70<1,D70<1,L70>=1,H70<=D70),aux!AG15,IF(AND(L70<1,H70<1,D70>=1,L70<=H70),aux!AG16,IF(AND(H70<1,L70>=1,D70>=1,L70<D70,ABS(L67-L68)<H68-H67),aux!AG20,IF(AND(H70<1,L70<1,D70>=1,H70<=L70),aux!AG17,IF(AND(H70<1,D70>=1,L70>=1,D70<=L70,ABS(D67-D68)>=H68-H67),aux!AG19,IF(AND(H70<1,L70>=1,D70>=1,L70<D70,ABS(L67-L68)>=H68-H67),aux!AG21)))))))))))))))))))) -> b AC1 | C79: n studs [-] | D79: =IF(N20=aux!$L$5,D78/($G$29*$G$19),"") ->  | G79: n studs [-] | H79: =IF(N20=aux!L2,"",H78/($G$29*$G$19)) -> 36.64655176 | K79: n studs [-] | L79: =IF(N20=aux!$L$3,"",L78/($G$29*$G$19)) -> 8.691694183 | W79: z+ | X79: [mm] | Y79: =Y75-Y73*1000/(2*Y77*$C$3) -> 18.58628331
A80: mean redistribution | C80: Length [m] | D80: =IF(N20=aux!$L$5,MIN(-1/$S$20*((-$S$20*$O$2/2+($D$74-$L$74)/$O$2)+(($S$20*$O$2/2-($D$74-$L$74)/$O$2)^2+2*$S$20*$D$74)^0.5),-1/$S$20*((-$S$20*$O$2/2+($D$74-$L$74)/$O$2)-(($S$20*$O$2/2-($D$74-$L$74)/$O$2)^2+2*$S$20*$D$74)^0.5)),"") ->  | G80: Length [m] | H80: =IF(N20=aux!L2,"",O2-IF(D80="",0,D80)-IF(L80="",0,L80)) -> 4.781250381 | K80: Length [m] | L80: =IF(N20=aux!$L$3,"",$O$2-MAX(-1/$S$20*((-$S$20*$O$2/2+($D$74-$L$74)/$O$2)+(($S$20*$O$2/2-($D$74-$L$74)/$O$2)^2+2*$S$20*$D$74)^0.5),-1/$S$20*((-$S$20*$O$2/2+($D$74-$L$74)/$O$2)-(($S$20*$O$2/2-($D$74-$L$74)/$O$2)^2+2*$S$20*$D$74)^0.5))) -> 1.218749619 | W80: Mr- | X80: [kNm/m] | Y80: =Y72*Y78/1000 -> 6.858731007
A81: =IF(N20=aux!L4,1-L74/L68,IF(N20=aux!L5,1-AVERAGE(L89,D74)/L68,0)) -> 0.187500254 | C81: s studs [mm] | D81: =IF(N20=aux!$L$5,D80*1000/D79,"") ->  | G81: s studs [mm] | H81: =IF(N20=aux!L2,"",H80*1000/H79) -> 130.4693116 | K81: s studs [mm] | L81: =IF(N20=aux!$L$3,"",L80*1000/L79) -> 140.22003 | W81: Mr+ | X81: [kNm/m] | Y81: =Y73*Y79/1000 -> 1.31378695
W82: Miso,R | X82: [kNm/m] | Y82: =IF(Y71=aux!L3,Y81,IF(Y71=aux!L4,Y80/2+Y81,IF(Y71=aux!L5,Y80+Y81))) -> 8.172517957
A83: SLS | W83: Miso,d | X83: [kNm/m] | Y83: =S17*Y68^2/8 -> 2.795446426
A84: scaffolding | B84: [Y/N] | C84: N | W84: use (μ) | X84: - | Y84: =Y83/Y82 -> 0.3420544856
A85: factor δ elastic | B85: - | C85: =IF(N20=aux!L2,aux!U2,IF(N20=aux!L3,aux!U3,IF(N20=aux!L4,aux!U4,IF(N20=aux!L5,aux!U5)))) -> 0.005405405405
A86: factor δ redist | B86: - | C86: =IF(MIN(D71,H71,L71)<1,IF(N20=aux!L4,IF(L71<H71,aux!U4*L71+aux!U3*(1-L71),aux!U4*H71+aux!U6*(1-H71)),IF(AVERAGE(L71,D71)<H71,aux!U5*AVERAGE(L71,D71)+aux!U3*(1-AVERAGE(L71,D71)),aux!U5*H71+aux!U7*(1-H71))),C85) -> 0.005405405405 | W86: hacer fuego para cualquier perfil
A87: δslab,short | B87: [mm] | C87: =IF(AND(OR(N20=aux!L2,N20=aux!L3),C86<C85),"",IF(C84=aux!A1,0,C85*S22*(O2*1000)^4/(C41*K21))) -> 7.565566358
A88: δG,short | B88: [mm] | C88: =IF(C87="","",C85*(O2*1000)^4*S23/H52) -> 3.016392306
A89: δpers,long | B89: [mm] | C89: =IF(C87="","",C86*(O2*1000)^4*S25/I52) -> 13.55850865
A90: δcuasi,long | B90: [mm] | C90: =IF(C87="","",C86*(O2*1000)^4*S26/I52) -> 9.701066053 | D90: L/δ | E90: limit | F90: overdesign
A91: δact | B91: [mm] | C91: =IF(C87="","",C89-C88) -> 10.54211635 | D91: =IF(C87="","",IF(C91=0,"",$O$2*1000/C91)) -> 569.1456823 | E91: =IF(S7=aux!D2,aux!E2,IF(S7=aux!D3,aux!E3,IF(S7=aux!D4,aux!E4)))*(IF(N20=aux!L2,0.5,1)) -> 400 | F91: =IF(C87="","Instable",IF(D91="","",D91/E91)) -> 1.422864206
A92: δinst | B92: [mm] | C92: =IF(C87="","",C85*(O2*1000)^4*S24/H52) -> 4.524588458 | D92: =IF(C87="","",IF(C92=0,"",$O$2*1000/C92)) -> 1326.087456 | E92: =350*(IF(N20=aux!L2,0.5,1)) -> 350 | F92: =IF(D92="","Instable",D92/E92) -> 3.788821304
A93: δtot | B93: [mm] | C93: =IF(C87="","",C90+C87) -> 17.26663241 | D93: =IF(C87="","",IF(C93=0,"",$O$2*1000/C93)) -> 347.4910369 | E93: =300*(IF(N20=aux!L2,0.5,1)) -> 300 | F93: =IF(D93="","Instable",D93/E93) -> 1.158303456
A105: factor beff | B105: 0.05
A106: factor cross section | B106: 0.25
A107: BENDING MOMENT GRAPHIC
A108: x/L | B108: x | C108: beff | D108: beff graph- | E108: beff graph+ | F108: Mr- | G108: Mr+ | H108: Mel,d,ELU | I108: Mpl,d,ELU | J108: Mr,ELU | K108: Mel,ELS,pers
A109: - | B109: [m] | C109: [mm] | D109: - | E109: - | F109: [kNm] | G109: [kNm] | H109: [kNm] | I109: [kNm] | J109: [kNm] | K109: [kNm]
A110: 0 | B110: =A110*$O$2 -> 0 | C110: =IF($N$20=aux!$L$2,$Q$36,IF(A110<0.25,$O$36+A110/0.25*($P$36-$O$36),IF(A110<0.75,$P$36,$Q$36+(1-A110)/0.25*($P$36-$Q$36)))) -> 828.75 | D110: =-E110 -> -41.4375 | E110: =C110*$B$105 -> 41.4375 | F110: =$D$67+A110*($L$67-$D$67) -> 0 | G110: =$H$67 -> 251.8220694 | H110: =$D$68+($S$20*$O$2/2-($D$68-$L$68)/$O$2)*B110-$S$20*B110^2/2 -> 0 | I110: =$D$74+($S$20*$O$2/2-($D$74-$L$74)/$O$2)*B110-$S$20*B110^2/2 -> 0 | J110: =$D$67+($A$73*$O$2/2-($D$67-$L$67)/$O$2)*B110-$A$73/2*B110^2 -> 0 | K110: =$D$69+($S$25*$O$2/2-($D$69-$L$69)/$O$2)*B110-$S$25*B110^2/2 -> 0
A111: 0.05 | B111: 0.3 | C111: =IF($N$20=aux!$L$2,$Q$36,IF(A111<0.25,$O$36+A111/0.25*($P$36-$O$36),IF(A111<0.75,$P$36,$Q$36+(1-A111)/0.25*($P$36-$Q$36)))) -> 918 | D111: =-E111 -> -45.9 | E111: 45.9 | F111: =$D$67+A111*($L$67-$D$67) -> -10.32888611 | G111: 251.8220694 | H111: 35.59494173 | I111: 37.9785348 | J111: 55.68361833 | K111: 25.2273735
A112: 0.1 | B112: 0.6 | C112: =IF($N$20=aux!$L$2,$Q$36,IF(A112<0.25,$O$36+A112/0.25*($P$36-$O$36),IF(A112<0.75,$P$36,$Q$36+(1-A112)/0.25*($P$36-$Q$36)))) -> 1007.25 | D112: -50.3625 | E112: 50.3625 | F112: -20.65777222 | G112: 251.8220694 | H112: 66.10489178 | I112: 70.87207793 | J112: 104.418552 | K112: 46.8508365
A113: 0.15 | B113: 0.9 | C113: =IF($N$20=aux!$L$2,$Q$36,IF(A113<0.25,$O$36+A113/0.25*($P$36-$O$36),IF(A113<0.75,$P$36,$Q$36+(1-A113)/0.25*($P$36-$Q$36)))) -> 1096.5 | D113: -54.825 | E113: 54.825 | F113: -30.98665833 | G113: 251.8220694 | H113: 91.52985015 | I113: 98.68062938 | J113: 146.2048009 | K113: 64.870389
A114: 0.2 | B114: 1.2 | C114: =IF($N$20=aux!$L$2,$Q$36,IF(A114<0.25,$O$36+A114/0.25*($P$36-$O$36),IF(A114<0.75,$P$36,$Q$36+(1-A114)/0.25*($P$36-$Q$36)))) -> 1185.75 | D114: -59.2875 | E114: 59.2875 | F114: -41.31554444 | G114: 251.8220694 | H114: 111.8698169 | I114: 121.4041892 | J114: 181.0423652 | K114: 79.286031
A115: 0.25 | B115: 1.5 | C115: =IF($N$20=aux!$L$2,$Q$36,IF(A115<0.25,$O$36+A115/0.25*($P$36-$O$36),IF(A115<0.75,$P$36,$Q$36+(1-A115)/0.25*($P$36-$Q$36)))) -> 1275 | D115: -63.75 | E115: 63.75 | F115: -51.64443056 | G115: 251.8220694 | H115: 127.1247919 | I115: 139.0427573 | J115: 208.9312449 | K115: 90.0977625
A116: 0.3 | B116: 1.8 | C116: =IF($N$20=aux!$L$2,$Q$36,IF(A116<0.25,$O$36+A116/0.25*($P$36-$O$36),IF(A116<0.75,$P$36,$Q$36+(1-A116)/0.25*($P$36-$Q$36)))) -> 1275 | D116: -63.75 | E116: 63.75 | F116: -61.97331667 | G116: 251.8220694 | H116: 137.2947752 | I116: 151.5963337 | J116: 229.8714398 | K116: 97.3055835
A117: 0.35 | B117: 2.1 | C117: =IF($N$20=aux!$L$2,$Q$36,IF(A117<0.25,$O$36+A117/0.25*($P$36-$O$36),IF(A117<0.75,$P$36,$Q$36+(1-A117)/0.25*($P$36-$Q$36)))) -> 1275 | D117: -63.75 | E117: 63.75 | F117: -72.30220278 | G117: 251.8220694 | H117: 142.3797669 | I117: 159.0649184 | J117: 243.8629501 | K117: 100.909494
A118: 0.4 | B118: 2.4 | C118: =IF($N$20=aux!$L$2,$Q$36,IF(A118<0.25,$O$36+A118/0.25*($P$36-$O$36),IF(A118<0.75,$P$36,$Q$36+(1-A118)/0.25*($P$36-$Q$36)))) -> 1275 | D118: -63.75 | E118: 63.75 | F118: -82.63108889 | G118: 251.8220694 | H118: 142.3797669 | I118: 161.4485115 | J118: 250.9057756 | K118: 100.909494
A119: 0.45 | B119: 2.7 | C119: =IF($N$20=aux!$L$2,$Q$36,IF(A119<0.25,$O$36+A119/0.25*($P$36-$O$36),IF(A119<0.75,$P$36,$Q$36+(1-A119)/0.25*($P$36-$Q$36)))) -> 1275 | D119: -63.75 | E119: 63.75 | F119: -92.959975 | G119: 251.8220694 | H119: 137.2947752 | I119: 158.7471129 | J119: 250.9999165 | K119: 97.3055835
A120: 0.5 | B120: 3 | C120: =IF($N$20=aux!$L$2,$Q$36,IF(A120<0.25,$O$36+A120/0.25*($P$36-$O$36),IF(A120<0.75,$P$36,$Q$36+(1-A120)/0.25*($P$36-$Q$36)))) -> 1275 | D120: -63.75 | E120: 63.75 | F120: -103.2888611 | G120: 251.8220694 | H120: 127.1247919 | I120: 150.9607226 | J120: 244.1453728 | K120: 90.0977625
A121: 0.55 | B121: 3.3 | C121: =IF($N$20=aux!$L$2,$Q$36,IF(A121<0.25,$O$36+A121/0.25*($P$36-$O$36),IF(A121<0.75,$P$36,$Q$36+(1-A121)/0.25*($P$36-$Q$36)))) -> 1275 | D121: -63.75 | E121: 63.75 | F121: -113.6177472 | G121: 251.8220694 | H121: 111.8698169 | I121: 138.0893407 | J121: 230.3421443 | K121: 79.286031
A122: 0.6 | B122: 3.6 | C122: =IF($N$20=aux!$L$2,$Q$36,IF(A122<0.25,$O$36+A122/0.25*($P$36-$O$36),IF(A122<0.75,$P$36,$Q$36+(1-A122)/0.25*($P$36-$Q$36)))) -> 1275 | D122: -63.75 | E122: 63.75 | F122: -123.9466333 | G122: 251.8220694 | H122: 91.52985015 | I122: 120.1329671 | J122: 209.5902312 | K122: 64.870389
A123: 0.65 | B123: 3.9 | C123: =IF($N$20=aux!$L$2,$Q$36,IF(A123<0.25,$O$36+A123/0.25*($P$36-$O$36),IF(A123<0.75,$P$36,$Q$36+(1-A123)/0.25*($P$36-$Q$36)))) -> 1275 | D123: -63.75 | E123: 63.75 | F123: -134.2755194 | G123: 251.8220694 | H123: 66.10489177 | I123: 97.09160177 | J123: 181.8896334 | K123: 46.8508365
A124: 0.7 | B124: 4.2 | C124: =IF($N$20=aux!$L$2,$Q$36,IF(A124<0.25,$O$36+A124/0.25*($P$36-$O$36),IF(A124<0.75,$P$36,$Q$36+(1-A124)/0.25*($P$36-$Q$36)))) -> 1275 | D124: -63.75 | E124: 63.75 | F124: -144.6044056 | G124: 251.8220694 | H124: 35.59494173 | I124: 68.96524479 | J124: 147.2403509 | K124: 25.2273735
A125: 0.75 | B125: 4.5 | C125: =IF($N$20=aux!$L$2,$Q$36,IF(A125<0.25,$O$36+A125/0.25*($P$36-$O$36),IF(A125<0.75,$P$36,$Q$36+(1-A125)/0.25*($P$36-$Q$36)))) -> 1275 | D125: -63.75 | E125: 63.75 | F125: -154.9332917 | G125: 251.8220694 | H125: 0 | I125: 35.75389615 | J125: 105.6423837 | K125: 0
A126: 0.8 | B126: 4.8 | C126: =IF($N$20=aux!$L$2,$Q$36,IF(A126<0.25,$O$36+A126/0.25*($P$36-$O$36),IF(A126<0.75,$P$36,$Q$36+(1-A126)/0.25*($P$36-$Q$36)))) -> 1125 | D126: -56.25 | E126: 56.25 | F126: -165.2621778 | G126: 251.8220694 | H126: -40.6799334 | I126: -2.542444178 | J126: 57.09573191 | K126: -28.831284
A127: 0.85 | B127: 5.1 | C127: =IF($N$20=aux!$L$2,$Q$36,IF(A127<0.25,$O$36+A127/0.25*($P$36-$O$36),IF(A127<0.75,$P$36,$Q$36+(1-A127)/0.25*($P$36-$Q$36)))) -> 975 | D127: -48.75 | E127: 48.75 | F127: -175.5910639 | G127: 251.8220694 | H127: -86.44485848 | I127: -45.92377618 | J127: 1.600395392 | K127: -61.2664785
A128: 0.9 | B128: 5.4 | C128: =IF($N$20=aux!$L$2,$Q$36,IF(A128<0.25,$O$36+A128/0.25*($P$36-$O$36),IF(A128<0.75,$P$36,$Q$36+(1-A128)/0.25*($P$36-$Q$36)))) -> 825 | D128: -41.25 | E128: 41.25 | F128: -185.91995 | G128: 251.8220694 | H128: -137.2947752 | I128: -94.39009985 | J128: -60.8436258 | K128: -97.3055835
A129: 0.95 | B129: 5.7 | C129: =IF($N$20=aux!$L$2,$Q$36,IF(A129<0.25,$O$36+A129/0.25*($P$36-$O$36),IF(A129<0.75,$P$36,$Q$36+(1-A129)/0.25*($P$36-$Q$36)))) -> 675 | D129: -33.75 | E129: 33.75 | F129: -196.2488361 | G129: 251.8220694 | H129: -193.2296836 | I129: -147.9414152 | J129: -130.2363317 | K129: -136.948599
A130: 1 | B130: 6 | C130: =IF($N$20=aux!$L$2,$Q$36,IF(A130<0.25,$O$36+A130/0.25*($P$36-$O$36),IF(A130<0.75,$P$36,$Q$36+(1-A130)/0.25*($P$36-$Q$36)))) -> 525 | D130: -26.25 | E130: 26.25 | F130: -206.5777222 | G130: 251.8220694 | H130: -254.2495838 | I130: -206.5777222 | J130: -206.5777222 | K130: -180.195525
A133: CROSS SECTION GRAPHIC | B133: A | C133: C | D133: B
A134: top | B134: =-$B$106*$D$58 -> -52.71481429 | C134: =-$B$106*$H$58 -> -33.08380909 | D134: =-$B$106*$L$58 -> -44.72872787
A135: top wave | B135: =$B$134+$B$106*O40 -> -37.71481429 | C135: =$C$134+$B$106*O40 -> -18.08380909 | D135: =$D$134+$B$106*O40 -> -29.72872787
A136: bottom wave | B136: =$B$134+$B$106*O41 -> -22.71481429 | C136: =$C$134+$B$106*O41 -> -3.083809091 | D136: =$D$134+$B$106*O41 -> -14.72872787
A137: bottom flange | B137: =$B$134+$B$106*O42 -> -18.96481429 | C137: =$C$134+$B$106*O42 -> 0.6661909091 | D137: =$D$134+$B$106*O42 -> -10.97872787
A138: bottom web | B138: =$B$134+$B$106*O43 -> 23.53518571 | C138: =$C$134+$B$106*O43 -> 43.16619091 | D138: =$D$134+$B$106*O43 -> 31.52127213
A139: bottom | B139: =$B$134+$B$106*O44 -> 27.28518571 | C139: =$C$134+$B$106*O44 -> 46.91619091 | D139: =$D$134+$B$106*O44 -> 35.27127213

Sheet aux
A1: Y | B1: fsk | C1: family | D1: walls | E1: L/δ max | F1: constraint | G1: Q cathegory | H1: Ψ1 | I1: Ψ2 | J1: φ | K1: profile type | L1: global constraint | M1: factor L A | N1: factor L C | O1: factor L B | P1: factor V A | Q1: factor V B | R1: factor M A | S1: factor M C | T1: factor M B | U1: facfor δ | V1: cement | W1: s | X1: exposition to RH | Y1: factor panza | Z1: class | AA1: time term | AB1: bending sign | AC1: Creep code | AD1: type redistibution | AF1: M type | AG1: type redistribution | AH1: MA | AI1: MC | AJ1: MB
A2: N | B2: 235 | C2: secondary | D2: brittle | E2: 500 | F2: fix | G2: snow low | H2: 0.2 | I2: 0 | J2: 5 | K2: IPE | L2: free-fix | M2: 2 | N2: 2 | O2: 2 | P2: 0 | Q2: 1 | R2: 0 | S2: 0 | T2: 0.5 | U2: =1/8 -> 0.125 | V2: fast | W2: 0.2 | X2: top and bottom | Y2: =128/144 -> 0.8888888889 | Z2: 1 | AA2: short | AB2: + | AC2: EC4 | AD2: AB | AF2: el | AG2: overdesign all | AH2: =AF2 -> el | AI2: =AF2 -> el | AJ2: =AF2 -> el
B3: 275 | C3: primary | D3: average | E3: 400 | F3: pin | G3: use A-B, snow high | H3: 0.5 | I3: 0.3 | J3: 6 | K3: HEB | L3: pin-pin | M3: 0.85 | N3: 1 | O3: 0.85 | P3: 0.5 | Q3: 0.5 | R3: 0 | S3: =1/8 -> 0.125 | T3: 0 | U3: =5/384 -> 0.01302083333 | V3: normal | W3: 0.25 | X3: top | Z3: ≥2 | AA3: long | AB3: - | AC3: EHE-08 | AD3: AC | AF3: R | AG3: fail | AH3: =AF3 -> R | AI3: =AF4 -> cal | AJ3: =AF3 -> R
B4: 335 | D4: no | E4: 300 | F4: free | G4: use C-D-E | H4: 0.7 | I4: 0.6 | J4: 8 | L4: pin-fix | M4: 0.85 | N4: 0.85 | O4: 0.5 | P4: =3/8 -> 0.375 | Q4: =5/8 -> 0.625 | R4: 0 | S4: =1/16 -> 0.0625 | T4: =1/8 -> 0.125 | U4: =1/185 -> 0.005405405405 | V4: slow | W4: 0.38 | X4: bottom | AA4: any | AC4: average | AD4: BC | AF4: cal | AG4: a BC1 | AH4: =AF3 -> R | AI4: =AF4 -> cal | AJ4: =AF2 -> el
G5: use G | H5: 0 | I5: 0 | J5: 10 | L5: fix-fix | M5: 0.5 | N5: 0.7 | O5: 0.5 | P5: 0.5 | Q5: 0.5 | R5: =1/12 -> 0.08333333333 | S5: =1/24 -> 0.04166666667 | T5: =1/12 -> 0.08333333333 | U5: =1/384 -> 0.002604166667 | X5: none | AF5: esp | AG5: a BC2 | AH5: =AF3 -> R | AI5: =AF3 -> R | AJ5: =AF4 -> cal
J6: 12 | S6: pin-plasticHinge-fix | U6: =1/128+1/96 -> 0.01822916667 | AG6: b AC1 | AH6: =AJ4 -> el | AI6: =AI4 -> cal | AJ6: =AH4 -> R
J7: 16 | S7: fix-plastic-Hinge-fix | U7: =1/128 -> 0.0078125 | AG7: b AC2 | AH7: =AJ5 -> cal | AI7: =AI5 -> R | AJ7: =AH5 -> R
J8: 20 | AG8: ab C | AH8: =AF3 -> R | AI8: =AF4 -> cal | AJ8: =AF3 -> R
J9: 0 | AG9: ba C | AH9: =AF3 -> R | AI9: =AF4 -> cal | AJ9: =AF3 -> R
AG10: a CB1 | AH10: =AF3 -> R | AI10: =AF4 -> cal | AJ10: =AF2 -> el
AG11: a CB2 | AH11: =AF3 -> R | AI11: =AF3 -> R | AJ11: =AF4 -> cal
AG12: b CA1 | AH12: =AJ10 -> el | AI12: =AI10 -> cal | AJ12: =AH10 -> R
AG13: b CA2 | AH13: =AJ11 -> cal | AI13: =AI11 -> R | AJ13: =AH11 -> R
AG14: ac B | AH14: =AF3 -> R | AI14: =AF3 -> R | AJ14: =AF4 -> cal
AG15: ca B | AH15: =AF3 -> R | AI15: =AF3 -> R | AJ15: =AF4 -> cal
AG16: bc A | AH16: =AJ14 -> cal | AI16: =AI14 -> R | AJ16: =AH14 -> R
AG17: cb A | AH17: =AJ15 -> cal | AI17: =AI15 -> R | AJ17: =AH15 -> R
AG18: c AB1 | AH18: =AF3 -> R | AI18: =AF3 -> R | AJ18: =AF4 -> cal
AG19: c AB2 | AH19: =AF5 -> esp | AI19: =AF3 -> R | AJ19: =AF4 -> cal
AG20: c BA1 | AH20: =AJ18 -> cal | AI20: =AI18 -> R | AJ20: =AH18 -> R
AG21: c BA2 | AH21: =AJ19 -> cal | AI21: =AI19 -> R | AJ21: =AH19 -> esp

Sheet IPE
A1: series | B1: weight | C1: h | D1: b | E1: tw | F1: tf | G1: r | H1: A | I1: I strong | J1: Wel strong | K1: Wpl strong | L1: i strong | M1: Av strong | N1: I weak | O1: Wel weak | P1: Wpl weak | Q1: i weak | R1: ss | S1: It | T1: Iw | U1: class, compression | X1: class, bending | AA1: Npl,Rd | AD1: Mpl,Rd strong | AG1: Mpl,Rd weak | AJ1: Vpl,Rd strong | AN1: perimeter non protected
A2: - | B2: [kp/m] | C2: [mm] | D2: [mm] | E2: [mm] | F2: [mm] | G2: [mm] | H2: [mm2] | I2: [cm4] | J2: [cm3] | K2: [cm3] | L2: [mm] | M2: [mm2] | N2: [cm4] | O2: [cm3] | P2: [cm3] | Q2: [mm] | R2: [mm] | S2: [cm4] | T2: [] | U2: S235 | V2: S275 | W2: S335 | X2: S235 | Y2: S275 | Z2: S335 | AA2: S235 | AB2: S275 | AC2: S335 | AD2: S235 | AE2: S275 | AF2: S335 | AG2: S235 | AH2: S275 | AI2: S335 | AJ2: S235 | AK2: S275 | AL2: S335 | AN2: [mm]
A3: 80 | B3: 6 | C3: 80 | D3: 46 | E3: 3.8 | F3: 5.2 | G3: 5 | H3: 764.38 | I3: 80.14 | J3: 20.03 | K3: 23.22 | L3: 32.38 | M3: 357.74 | N3: 8.49 | O3: 3.69 | P3: 5.82 | Q3: 10.54 | R3: 20.06 | S3: 0.7 | T3: 0.12 | U3: 1 | V3: 1 | W3: 1 | X3: 1 | Y3: 1 | Z3: 1 | AA3: 171.1 | AB3: 200.2 | AC3: 258.4 | AD3: 5.2 | AE3: 6.08 | AF3: 7.85 | AG3: 1.3 | AH3: 1.52 | AI3: 1.97 | AJ3: 46.23 | AK3: 54.09 | AL3: 69.83 | AN3: =3*D3-2*E3+2*C3+(2*PI()-8)*G3 -> 281.8159265
A4: 100 | B4: 8.1 | C4: 100 | D4: 55 | E4: 4.1 | F4: 5.7 | G4: 7 | H4: 1032.4 | I4: 171.01 | J4: 34.2 | K4: 39.41 | L4: 40.7 | M4: 508.57 | N4: 15.92 | O4: 5.79 | P4: 9.15 | Q4: 12.42 | R4: 23.7 | S4: 1.2 | T4: 0.35 | U4: 1 | V4: 1 | W4: 1 | X4: 1 | Y4: 1 | Z4: 1 | AA4: 231.1 | AB4: 270.4 | AC4: 349 | AD4: 8.82 | AE4: 10.32 | AF4: 13.32 | AG4: 2.05 | AH4: 2.4 | AI4: 3.09 | AJ4: 65.72 | AK4: 76.9 | AL4: 99.27 | AN4: 344.7822972
A5: 120 | B5: 10.37 | C5: 120 | D5: 64 | E5: 4.4 | F5: 6.3 | G5: 7 | H5: 1321.1 | I5: 317.75 | J5: 52.96 | K5: 60.73 | L5: 49.04 | M5: 630.62 | N5: 27.67 | O5: 8.65 | P5: 13.58 | Q5: 14.47 | R5: 25.2 | S5: 1.74 | T5: 0.89 | U5: 1 | V5: 1 | W5: 1 | X5: 1 | Y5: 1 | Z5: 1 | AA5: 295.7 | AB5: 346 | AC5: 446.7 | AD5: 13.59 | AE5: 15.9 | AF5: 20.53 | AG5: 3.04 | AH5: 3.56 | AI5: 4.59 | AJ5: 81.49 | AK5: 95.36 | AL5: 123.1 | AN5: 411.1822972
A6: 140 | B6: 12.9 | C6: 140 | D6: 73 | E6: 4.7 | F6: 6.9 | G6: 7 | H6: 1642.68 | I6: 541.22 | J6: 77.32 | K6: 88.34 | L6: 57.4 | M6: 764.31 | N6: 44.92 | O6: 12.31 | P6: 19.25 | Q6: 16.54 | R6: 26.7 | S6: 2.45 | T6: 1.98 | U6: 1 | V6: 1 | W6: 2 | X6: 1 | Y6: 1 | Z6: 1 | AA6: 367.6 | AB6: 430.2 | AC6: 555.4 | AD6: 19.77 | AE6: 23.14 | AF6: 29.87 | AG6: 4.31 | AH6: 5.04 | AI6: 6.51 | AJ6: 98.76 | AK6: 115.6 | AL6: 149.2 | AN6: 477.5822972
A7: 160 | B7: 15.77 | C7: 160 | D7: 82 | E7: 5 | F7: 7.4 | G7: 9 | H7: 2009.26 | I7: 869.29 | J7: 108.66 | K7: 123.86 | L7: 65.78 | M7: 965.86 | N7: 68.31 | O7: 16.66 | P7: 26.1 | Q7: 18.44 | R7: 30.34 | S7: 3.6 | T7: 3.96 | U7: 1 | V7: 1 | W7: 2 | X7: 1 | Y7: 1 | Z7: 1 | AA7: 449.7 | AB7: 526.2 | AC7: 679.3 | AD7: 27.72 | AE7: 32.44 | AF7: 41.88 | AG7: 5.84 | AH7: 6.84 | AI7: 8.82 | AJ7: 124.8 | AK7: 146 | AL7: 188.5 | AN7: 540.5486678
A8: 180 | B8: 18.8 | C8: 180 | D8: 91 | E8: 5.3 | F8: 8 | G8: 9 | H8: 2394.86 | I8: 1316.96 | J8: 146.33 | K8: 166.41 | L8: 74.16 | M8: 1125.26 | N8: 100.85 | O8: 22.16 | P8: 34.6 | Q8: 20.52 | R8: 31.84 | S8: 4.79 | T8: 7.43 | U8: 1 | V8: 2 | W8: 3 | X8: 1 | Y8: 1 | Z8: 1 | AA8: 536 | AB8: 627.2 | AC8: 809.7 | AD8: 37.25 | AE8: 43.58 | AF8: 56.26 | AG8: 7.74 | AH8: 9.06 | AI8: 11.7 | AJ8: 145.4 | AK8: 170.2 | AL8: 219.7 | AN8: 606.9486678
A9: 200 | B9: 22.36 | C9: 200 | D9: 100 | E9: 5.6 | F9: 8.5 | G9: 12 | H9: 2848.64 | I9: 1943.17 | J9: 194.32 | K9: 220.64 | L9: 82.59 | M9: 1400.24 | N9: 142.37 | O9: 28.47 | P9: 44.61 | Q9: 22.36 | R9: 36.66 | S9: 6.98 | T9: 12.99 | U9: 1 | V9: 2 | W9: 3 | X9: 1 | Y9: 1 | Z9: 1 | AA9: 637.6 | AB9: 746.1 | AC9: 963.1 | AD9: 49.38 | AE9: 57.79 | AF9: 74.6 | AG9: 9.98 | AH9: 11.68 | AI9: 15.08 | AJ9: 180.9 | AK9: 211.7 | AL9: 273.3 | AN9: 668.1982237
A10: 220 | B10: 26.2 | C10: 220 | D10: 110 | E10: 5.9 | F10: 9.2 | G10: 12 | H10: 3337.28 | I10: 2771.84 | J10: 251.99 | K10: 285.41 | L10: 91.14 | M10: 1588.36 | N10: 204.89 | O10: 37.25 | P10: 58.11 | Q10: 24.78 | R10: 38.36 | S10: 9.07 | T10: 22.67 | U10: 2 | V10: 2 | W10: 3 | X10: 1 | Y10: 1 | Z10: 1 | AA10: 746.9 | AB10: 874 | AC10: 1128 | AD10: 63.88 | AE10: 74.75 | AF10: 96.49 | AG10: 13.01 | AH10: 15.22 | AI10: 19.65 | AJ10: 205.2 | AK10: 240.2 | AL10: 310 | AN10: 737.5982237
A11: 240 | B11: 30.71 | C11: 240 | D11: 120 | E11: 6.2 | F11: 9.8 | G11: 15 | H11: 3911.98 | I11: 3891.62 | J11: 324.3 | K11: 366.65 | L11: 99.74 | M11: 1914.74 | N11: 283.63 | O11: 47.27 | P11: 73.92 | Q11: 26.93 | R11: 43.37 | S11: 12.88 | T11: 37.39 | U11: 2 | V11: 3 | W11: 4 | X11: 1 | Y11: 1 | Z11: 1 | AA11: 875.5 | AB11: 1025 | AC11: - | AD11: 82.06 | AE11: 96.03 | AF11: 124 | AG11: 16.54 | AH11: 19.36 | AI11: 24.99 | AJ11: 247.4 | AK11: 289.5 | AL11: 373.8 | AN11: 801.8477796
A12: 270 | B12: 36.07 | C12: 270 | D12: 135 | E12: 6.6 | F12: 10.2 | G12: 15 | H12: 4594.86 | I12: 5789.78 | J12: 428.87 | K12: 484 | L12: 112.25 | M12: 2214.18 | N12: 419.87 | O12: 62.2 | P12: 96.95 | Q12: 30.23 | R12: 44.57 | S12: 15.94 | T12: 70.58 | U12: 2 | V12: 3 | W12: 4 | X12: 1 | Y12: 1 | Z12: 1 | AA12: 1028 | AB12: 1203 | AC12: - | AD12: 108.3 | AE12: 126.8 | AF12: 163.6 | AG12: 21.7 | AH12: 25.39 | AI12: 32.78 | AJ12: 286.1 | AK12: 334.8 | AL12: 432.2 | AN12: 906.0477796
A13: 300 | B13: 42.25 | C13: 300 | D13: 150 | E13: 7.1 | F13: 10.7 | G13: 15 | H13: 5381.56 | I13: 8356.1 | J13: 557.07 | K13: 628.36 | L13: 124.61 | M13: 2568.53 | N13: 603.78 | O13: 80.5 | P13: 125.22 | Q13: 33.5 | R13: 46.07 | S13: 20.12 | T13: 125.93 | U13: 3 | V13: 4 | W13: 4 | X13: 1 | Y13: 1 | Z13: 1 | AA13: 1204 | AB13: - | AC13: - | AD13: 140.6 | AE13: 164.6 | AF13: 212.4 | AG13: 28.03 | AH13: 32.8 | AI13: 42.34 | AJ13: 331.9 | AK13: 388.4 | AL13: 501.4 | AN13: 1010.04778
A14: 330 | B14: 49.15 | C14: 330 | D14: 160 | E14: 7.5 | F14: 11.5 | G14: 18 | H14: 6261.14 | I14: 11766.89 | J14: 713.15 | K14: 804.33 | L14: 137.09 | M14: 3081.39 | N14: 788.14 | O14: 98.52 | P14: 153.68 | Q14: 35.48 | R14: 51.59 | S14: 28.15 | T14: 199.1 | U14: 3 | V14: 4 | W14: 4 | X14: 1 | Y14: 1 | Z14: 1 | AA14: 1401 | AB14: - | AC14: - | AD14: 180 | AE14: 210.7 | AF14: 271.9 | AG14: 34.39 | AH14: 40.25 | AI14: 51.96 | AJ14: 398.2 | AK14: 465.9 | AL14: 601.5 | AN14: 1094.097336
A15: 360 | B15: 57.1 | C15: 360 | D15: 170 | E15: 8 | F15: 12.7 | G15: 18 | H15: 7273.44 | I15: 16265.62 | J15: 903.65 | K15: 1019.15 | L15: 149.54 | M15: 3514.24 | N15: 1043.45 | O15: 122.76 | P15: 191.1 | Q15: 37.88 | R15: 54.49 | S15: 37.32 | T15: 313.58 | U15: 3 | V15: 4 | W15: 4 | X15: 1 | Y15: 1 | Z15: 1 | AA15: 1628 | AB15: - | AC15: - | AD15: 228.1 | AE15: 266.9 | AF15: 344.6 | AG15: 42.77 | AH15: 50.05 | AI15: 64.61 | AJ15: 454.1 | AK15: 531.4 | AL15: 686 | AN15: 1183.097336
A16: 400 | B16: 66.31 | C16: 400 | D16: 180 | E16: 8.6 | F16: 13.5 | G16: 21 | H16: 8447.06 | I16: 23128.35 | J16: 1156.42 | K16: 1307.15 | L16: 165.47 | M16: 4270.16 | N16: 1317.82 | O16: 146.42 | P16: 229 | Q16: 39.5 | R16: 60.2 | S16: 51.08 | T16: 490.05 | U16: 4 | V16: 4 | W16: 4 | X16: 1 | Y16: 1 | Z16: 1 | AA16: - | AB16: - | AC16: - | AD16: 292.6 | AE16: 342.3 | AF16: 441.9 | AG16: 51.25 | AH16: 59.98 | AI16: 77.42 | AJ16: 551.8 | AK16: 645.7 | AL16: 833.5 | AN16: 1286.746891
A17: 450 | B17: 77.58 | C17: 450 | D17: 190 | E17: 9.4 | F17: 14.6 | G17: 21 | H17: 9882.78 | I17: 33742.91 | J17: 1499.69 | K17: 1701.79 | L17: 184.78 | M17: 5085.22 | N17: 1675.86 | O17: 176.41 | P17: 276.38 | Q17: 41.18 | R17: 63.2 | S17: 66.87 | T17: 791.01 | U17: 4 | V17: 4 | W17: 4 | X17: 1 | Y17: 1 | Z17: 1 | AA17: - | AB17: - | AC17: - | AD17: 380.9 | AE17: 445.7 | AF17: 575.4 | AG17: 61.86 | AH17: 72.39 | AI17: 93.44 | AJ17: 657.1 | AK17: 768.9 | AL17: 992.6 | AN17: 1415.146891
A18: 500 | B18: 90.69 | C18: 500 | D18: 200 | E18: 10.2 | F18: 16 | G18: 21 | H18: 11552.86 | I18: 48198.5 | J18: 1927.94 | K18: 2194.12 | L18: 204.25 | M18: 5988.06 | N18: 2141.68 | O18: 214.17 | P18: 335.88 | Q18: 43.06 | R18: 66.8 | S18: 89.29 | T18: 1249.37 | U18: 4 | V18: 4 | W18: 4 | X18: 1 | Y18: 1 | Z18: 1 | AA18: - | AB18: - | AC18: - | AD18: 491.1 | AE18: 574.6 | AF18: 741.8 | AG18: 75.17 | AH18: 87.97 | AI18: 113.6 | AJ18: 773.8 | AK18: 905.5 | AL18: 1169 | AN18: 1543.546891
A19: 550 | B19: 105.52 | C19: 550 | D19: 210 | E19: 11.1 | F19: 17.2 | G19: 24 | H19: 13442.52 | I19: 67116.46 | J19: 2440.6 | K19: 2787.01 | L19: 223.45 | M19: 7235.04 | N19: 2667.58 | O19: 254.06 | P19: 400.54 | Q19: 44.55 | R19: 73.62 | S19: 123.24 | T19: 1884.1 | U19: 4 | V19: 4 | W19: 4 | X19: 1 | Y19: 1 | Z19: 1 | AA19: - | AB19: - | AC19: - | AD19: 623.8 | AE19: 729.9 | AF19: 942.3 | AG19: 89.64 | AH19: 104.9 | AI19: 135.4 | AJ19: 934.9 | AK19: 1094 | AL19: 1412 | AN19: 1666.596447
A20: 600 | B20: 122.45 | C20: 600 | D20: 220 | E20: 12 | F20: 19 | G20: 24 | H20: 15599.36 | I20: 92083.4 | J20: 3069.45 | K20: 3512.4 | L20: 242.96 | M20: 8379.36 | N20: 3387.34 | O20: 307.94 | P20: 485.65 | Q20: 46.6 | R20: 78.12 | S20: 165.42 | T20: 2845.53 | U20: 4 | V20: 4 | W20: 4 | X20: 1 | Y20: 1 | Z20: 1 | AA20: - | AB20: - | AC20: - | AD20: 786.1 | AE20: 919.9 | AF20: 1188 | AG20: 108.7 | AH20: 127.2 | AI20: 164.2 | AJ20: 1083 | AK20: 1267 | AL20: 1636 | AN20: 1794.796447

Sheet HEB
A1: series | B1: weight | C1: h | D1: b | E1: tw | F1: tf | G1: r | H1: A | I1: I strong | J1: Wel strong | K1: Wpl strong | L1: i strong | M1: Av strong | N1: I weak | O1: Wel weak | P1: Wpl weak | Q1: i weak | R1: ss | S1: It | T1: Iw | U1: class, compression | X1: class, bending | AA1: Npl,Rd | AD1: Mpl,Rd strong | AG1: Mpl,Rd weak | AJ1: Vpl,Rd strong | AN1: perimeter non protected
A2: - | B2: [kp/m] | C2: [mm] | D2: [mm] | E2: [mm] | F2: [mm] | G2: [mm] | H2: [mm2] | I2: [cm4] | J2: [cm3] | K2: [cm3] | L2: [mm] | M2: [mm2] | N2: [cm4] | O2: [cm3] | P2: [cm3] | Q2: [mm] | R2: [mm] | S2: [cm4] | T2: [] | U2: S235 | V2: S275 | W2: S335 | X2: S235 | Y2: S275 | Z2: S335 | AA2: S235 | AB2: S275 | AC2: S335 | AD2: S235 | AE2: S275 | AF2: S335 | AG2: S235 | AH2: S275 | AI2: S335 | AJ2: S235 | AK2: S275 | AL2: S335 | AN2: [mm]
A3: 100 | B3: 20.4 | C3: 100 | D3: 100 | E3: 6 | F3: 10 | G3: 12 | H3: 2603.84 | I3: 449.54 | J3: 89.91 | K3: 104.21 | L3: 41.55 | M3: 903.84 | N3: 167.27 | O3: 33.45 | P3: 51.42 | Q3: 25.35 | R3: 40.06 | S3: 9.25 | T3: 3.38 | U3: 1 | V3: 1 | W3: 1 | X3: 1 | Y3: 1 | Z3: 1 | AA3: 582.76 | AB3: 681.96 | AC3: 880.35 | AD3: 23.32 | AE3: 27.29 | AF3: 35.23 | AG3: 11.51 | AH3: 13.47 | AI3: 17.39 | AJ3: 116.79 | AK3: 136.67 | AL3: 176.43 | AN3: =3*D3-2*E3+2*C3+(2*PI()-8)*G3 -> 467.3982237
A4: 120 | B4: 26.7 | C4: 120 | D4: 120 | E4: 6.5 | F4: 11 | G4: 12 | H4: 3400.84 | I4: 864.37 | J4: 144.06 | K4: 165.21 | L4: 50.41 | M4: 1096.34 | N4: 317.52 | O4: 52.92 | P4: 80.97 | Q4: 30.56 | R4: 42.56 | S4: 13.84 | T4: 9.41 | U4: 1 | V4: 1 | W4: 1 | X4: 1 | Y4: 1 | Z4: 1 | AA4: 761.14 | AB4: 890.7 | AC4: 1149.81 | AD4: 36.98 | AE4: 43.27 | AF4: 55.86 | AG4: 18.12 | AH4: 21.21 | AI4: 27.37 | AJ4: 141.67 | AK4: 165.78 | AL4: 214 | AN4: 566.3982237
A5: 140 | B5: 33.7 | C5: 140 | D5: 140 | E5: 7 | F5: 12 | G5: 12 | H5: 4295.84 | I5: 1509.23 | J5: 215.6 | K5: 245.43 | L5: 59.27 | M5: 1307.84 | N5: 549.67 | O5: 78.52 | P5: 119.78 | Q5: 35.77 | R5: 45.06 | S5: 20.06 | T5: 22.48 | U5: 1 | V5: 1 | W5: 1 | X5: 1 | Y5: 1 | Z5: 1 | AA5: 961.45 | AB5: 1125.1 | AC5: 1452.4 | AD5: 54.93 | AE5: 64.28 | AF5: 82.98 | AG5: 26.81 | AH5: 31.37 | AI5: 40.5 | AJ5: 168.99 | AK5: 197.76 | AL5: 255.29 | AN5: 665.3982237
A6: 160 | B6: 42.6 | C6: 160 | D6: 160 | E6: 8 | F6: 13 | G6: 15 | H6: 5425.5 | I6: 2492 | J6: 311.5 | K6: 353.97 | L6: 67.77 | M6: 1759.5 | N6: 889.23 | O6: 111.15 | P6: 169.96 | Q6: 40.48 | R6: 51.57 | S6: 31.24 | T6: 47.94 | U6: 1 | V6: 1 | W6: 1 | X6: 1 | Y6: 1 | Z6: 1 | AA6: 1214.28 | AB6: 1420.96 | AC6: 1834.34 | AD6: 79.22 | AE6: 92.71 | AF6: 119.67 | AG6: 38.04 | AH6: 44.51 | AI6: 57.46 | AJ6: 227.36 | AK6: 266.06 | AL6: 343.45 | AN6: 758.2477796
A7: 180 | B7: 51.2 | C7: 180 | D7: 180 | E7: 8.5 | F7: 14 | G7: 15 | H7: 6525.5 | I7: 3831.13 | J7: 425.68 | K7: 481.45 | L7: 76.62 | M7: 2024.5 | N7: 1362.85 | O7: 151.43 | P7: 231.01 | Q7: 45.7 | R7: 54.07 | S7: 42.16 | T7: 93.75 | U7: 1 | V7: 1 | W7: 1 | X7: 1 | Y7: 1 | Z7: 1 | AA7: 1460.47 | AB7: 1709.06 | AC7: 2206.24 | AD7: 107.75 | AE7: 126.09 | AF7: 162.78 | AG7: 51.7 | AH7: 60.5 | AI7: 78.1 | AJ7: 261.6 | AK7: 306.13 | AL7: 395.18 | AN7: 857.2477796
A8: 200 | B8: 61.3 | C8: 200 | D8: 200 | E8: 9 | F8: 15 | G8: 18 | H8: 7808.64 | I8: 5696.17 | J8: 569.62 | K8: 642.55 | L8: 85.41 | M8: 2483.64 | N8: 2003.37 | O8: 200.34 | P8: 305.81 | Q8: 50.65 | R8: 60.09 | S8: 59.28 | T8: 171.13 | U8: 1 | V8: 1 | W8: 1 | X8: 1 | Y8: 1 | Z8: 1 | AA8: 1747.65 | AB8: 2045.12 | AC8: 2640.06 | AD8: 143.81 | AE8: 168.29 | AF8: 217.24 | AG8: 68.44 | AH8: 80.09 | AI8: 103.39 | AJ8: 320.93 | AK8: 375.55 | AL8: 484.8 | AN8: 951.0973355
A9: 220 | B9: 71.5 | C9: 220 | D9: 220 | E9: 9.5 | F9: 16 | G9: 18 | H9: 9104.64 | I9: 8090.96 | J9: 735.54 | K9: 827.05 | L9: 94.27 | M9: 2792.64 | N9: 2843.26 | O9: 258.48 | P9: 393.88 | Q9: 55.88 | R9: 62.59 | S9: 76.57 | T9: 295.42 | U9: 1 | V9: 1 | W9: 1 | X9: 1 | Y9: 1 | Z9: 1 | AA9: 2037.71 | AB9: 2384.55 | AC9: 3078.24 | AD9: 185.1 | AE9: 216.61 | AF9: 279.62 | AG9: 88.15 | AH9: 103.16 | AI9: 133.17 | AJ9: 360.86 | AK9: 422.28 | AL9: 545.12 | AN9: 1050.097336
A10: 240 | B10: 83.2 | C10: 240 | D10: 240 | E10: 10 | F10: 17 | G10: 21 | H10: 10599.26 | I10: 11259.29 | J10: 938.27 | K10: 1053.15 | L10: 103.07 | M10: 3323.26 | N10: 3922.66 | O10: 326.89 | P10: 498.42 | Q10: 60.83 | R10: 68.6 | S10: 102.69 | T10: 486.95 | U10: 1 | V10: 1 | W10: 1 | X10: 1 | Y10: 1 | Z10: 1 | AA10: 2372.22 | AB10: 2776 | AC10: 3583.56 | AD10: 235.7 | AE10: 275.82 | AF10: 356.06 | AG10: 111.55 | AH10: 130.54 | AI10: 168.51 | AJ10: 429.42 | AK10: 502.51 | AL10: 648.7 | AN10: 1143.946891
A11: 260 | B11: 93 | C11: 260 | D11: 260 | E11: 10 | F11: 17.5 | G11: 24 | H11: 11845.36 | I11: 14919.41 | J11: 1147.65 | K11: 1282.91 | L11: 112.23 | M11: 3760.36 | N11: 5134.51 | O11: 394.96 | P11: 602.25 | Q11: 65.84 | R11: 73.12 | S11: 123.78 | T11: 753.65 | U11: 1 | V11: 1 | W11: 1 | X11: 1 | Y11: 1 | Z11: 1 | AA11: 2651.1 | AB11: 3102.36 | AC11: 4004.86 | AD11: 287.13 | AE11: 336 | AF11: 433.75 | AG11: 134.79 | AH11: 157.73 | AI11: 203.62 | AJ11: 485.9 | AK11: 568.61 | AL11: 734.02 | AN11: 1238.796447
A12: 280 | B12: 103 | C12: 280 | D12: 280 | E12: 10.5 | F12: 18 | G12: 24 | H12: 13137.36 | I12: 19270.25 | J12: 1376.45 | K12: 1534.43 | L12: 121.11 | M12: 4110.36 | N12: 6594.52 | O12: 471.04 | P12: 717.57 | Q12: 70.85 | R12: 74.62 | S12: 143.72 | T12: 1130.15 | U12: 1 | V12: 1 | W12: 1 | X12: 1 | Y12: 1 | Z12: 1 | AA12: 2940.27 | AB12: 3440.74 | AC12: 4441.68 | AD12: 343.42 | AE12: 401.88 | AF12: 518.78 | AG12: 160.6 | AH12: 187.94 | AI12: 242.61 | AJ12: 531.13 | AK12: 621.53 | AL12: 802.34 | AN12: 1337.796447
A13: 300 | B13: 117 | C13: 300 | D13: 300 | E13: 11 | F13: 19 | G13: 27 | H13: 14908.94 | I13: 25165.65 | J13: 1677.71 | K13: 1868.67 | L13: 129.92 | M13: 4743.94 | N13: 8562.82 | O13: 570.85 | P13: 870.14 | Q13: 75.79 | R13: 80.63 | S13: 185.05 | T13: 1687.79 | U13: 1 | V13: 1 | W13: 1 | X13: 1 | Y13: 1 | Z13: 1 | AA13: 3336.76 | AB13: 3904.72 | AC13: 5040.64 | AD13: 418.23 | AE13: 489.41 | AF13: 631.79 | AG13: 194.75 | AH13: 227.89 | AI13: 294.19 | AJ13: 613 | AK13: 717.33 | AL13: 926.01 | AN13: 1431.646003
A14: 320 | B14: 127 | C14: 320 | D14: 300 | E14: 11.5 | F14: 20.5 | G14: 27 | H14: 16135.44 | I14: 30823.51 | J14: 1926.47 | K14: 2149.24 | L14: 138.21 | M14: 5178.19 | N14: 9238.82 | O14: 615.92 | P14: 939.1 | Q14: 75.67 | R14: 84.13 | S14: 225.07 | T14: 2068.71 | U14: 1 | V14: 1 | W14: 1 | X14: 1 | Y14: 1 | Z14: 1 | AA14: 3611.27 | AB14: 4225.95 | AC14: 5455.32 | AD14: 481.02 | AE14: 562.9 | AF14: 726.65 | AG14: 210.18 | AH14: 245.95 | AI14: 317.5 | AJ14: 669.11 | AK14: 783 | AL14: 1010.78 | AN14: 1470.646003
A15: 340 | B15: 134 | C15: 340 | D15: 300 | E15: 12 | F15: 21.5 | G15: 27 | H15: 17090.94 | I15: 36656.36 | J15: 2156.26 | K15: 2408.11 | L15: 146.45 | M15: 5609.94 | N15: 9689.93 | O15: 646 | P15: 985.72 | Q15: 75.3 | R15: 86.63 | S15: 257.2 | T15: 2453.63 | U15: 1 | V15: 1 | W15: 1 | X15: 1 | Y15: 1 | Z15: 1 | AA15: 3825.12 | AB15: 4476.2 | AC15: 5778.37 | AD15: 538.96 | AE15: 630.69 | AF15: 814.17 | AG15: 220.61 | AH15: 258.16 | AI15: 333.27 | AJ15: 724.9 | AK15: 848.28 | AL15: 1095.06 | AN15: 1509.646003
A16: 360 | B16: 142 | C16: 360 | D16: 300 | E16: 12.5 | F16: 22.5 | G16: 27 | H16: 18064.44 | I16: 43193.42 | J16: 2399.63 | K16: 2682.99 | L16: 154.63 | M16: 6060.69 | N16: 10141.16 | O16: 676.08 | P16: 1032.49 | Q16: 74.93 | R16: 89.13 | S16: 292.45 | T16: 2883.25 | U16: 1 | V16: 1 | W16: 1 | X16: 1 | Y16: 1 | Z16: 1 | AA16: 4042.99 | AB16: 4731.16 | AC16: 6107.5 | AD16: 600.48 | AE16: 702.69 | AF16: 907.11 | AG16: 231.08 | AH16: 270.41 | AI16: 349.08 | AJ16: 783.14 | AK16: 916.44 | AL16: 1183.04 | AN16: 1548.646003
A17: 400 | B17: 155 | C17: 400 | D17: 300 | E17: 13.5 | F17: 24 | G17: 27 | H17: 19778.94 | I17: 57680.48 | J17: 2884.02 | K17: 3231.74 | L17: 170.77 | M17: 6998.94 | N17: 10819.03 | O17: 721.27 | P17: 1104.04 | Q17: 73.96 | R17: 93.13 | S17: 355.75 | T17: 3817.15 | U17: 1 | V17: 1 | W17: 1 | X17: 1 | Y17: 1 | Z17: 1 | AA17: 4426.72 | AB17: 5180.2 | AC17: 6687.17 | AD17: 723.29 | AE17: 846.41 | AF17: 1092.64 | AG17: 247.09 | AH17: 289.15 | AI17: 373.27 | AJ17: 904.38 | AK17: 1058.32 | AL17: 1366.19 | AN17: 1626.646003
A18: 450 | B18: 171 | C18: 450 | D18: 300 | E18: 14 | F18: 26 | G18: 27 | H18: 21798.94 | I18: 79887.52 | J18: 3550.56 | K18: 3982.37 | L18: 191.44 | M18: 7966.94 | N18: 11721.32 | O18: 781.42 | P18: 1197.66 | Q18: 73.33 | R18: 97.63 | S18: 440.48 | T18: 5258.45 | U18: 1 | V18: 1 | W18: 2 | X18: 1 | Y18: 1 | Z18: 1 | AA18: 4878.81 | AB18: 5709.25 | AC18: 7370.12 | AD18: 891.29 | AE18: 1043 | AF18: 1346.42 | AG18: 268.05 | AH18: 313.67 | AI18: 404.92 | AJ18: 1029.46 | AK18: 1204.69 | AL18: 1555.14 | AN18: 1725.646003
A19: 500 | B19: 187 | C19: 500 | D19: 300 | E19: 14.5 | F19: 28 | G19: 27 | H19: 23864.94 | I19: 107175.73 | J19: 4287.03 | K19: 4814.57 | L19: 211.92 | M19: 8982.94 | N19: 12623.91 | O19: 841.59 | P19: 1291.65 | Q19: 72.73 | R19: 102.13 | S19: 538.44 | T19: 7017.7 | U19: 1 | V19: 2 | W19: 2 | X19: 1 | Y19: 1 | Z19: 1 | AA19: 5341.2 | AB19: 6250.34 | AC19: 8068.62 | AD19: 1077.55 | AE19: 1260.96 | AF19: 1627.78 | AG19: 289.08 | AH19: 338.29 | AI19: 436.7 | AJ19: 1160.74 | AK19: 1358.32 | AL19: 1753.46 | AN19: 1824.646003
A20: 550 | B20: 199 | C20: 550 | D20: 300 | E20: 15 | F20: 29 | G20: 27 | H20: 25406.94 | I20: 136690.81 | J20: 4970.57 | K20: 5590.61 | L20: 231.95 | M20: 10007.94 | N20: 13076.89 | O20: 871.79 | P20: 1341.14 | Q20: 71.74 | R20: 104.63 | S20: 600.33 | T20: 8855.76 | U20: 1 | V20: 2 | W20: 3 | X20: 1 | Y20: 1 | Z20: 1 | AA20: 5686.32 | AB20: 6654.2 | AC20: 8589.97 | AD20: 1251.23 | AE20: 1464.21 | AF20: 1890.16 | AG20: 300.16 | AH20: 351.25 | AI20: 453.43 | AJ20: 1293.19 | AK20: 1513.31 | AL20: 1953.54 | AN20: 1923.646003
A21: 600 | B21: 212 | C21: 600 | D21: 300 | E21: 15.5 | F21: 30 | G21: 27 | H21: 26996.94 | I21: 171041.04 | J21: 5701.37 | K21: 6425.14 | L21: 251.71 | M21: 11081.94 | N21: 13530.24 | O21: 902.02 | P21: 1391.06 | Q21: 70.79 | R21: 107.13 | S21: 667.18 | T21: 10965.38 | U21: 2 | V21: 2 | W21: 4 | X21: 1 | Y21: 1 | Z21: 1 | AA21: 6042.17 | AB21: 7070.63 | AC21: - | AD21: 1438.01 | AE21: 1682.77 | AF21: 2172.31 | AG21: 311.33 | AH21: 364.32 | AI21: 470.31 | AJ21: 1431.97 | AK21: 1675.71 | AL21: 2163.19 | AN21: 2022.646003
